{"text_format":"1","workbook":"xlsx","n_sheets":2,"sheets":["NEO","CONSOLIDADO"],"not_rendered":{"charts":0,"images":0,"macros":1,"external_links":1,"defined_names":11,"comments":2,"pivot_tables":0},"unopened":[],"bounds":{"document_bytes":16777216,"sheet_cells":100000,"rows_first":2000,"rows_last":500,"rows_between":2000,"halvings":0,"cell_chars":16384,"cell_head_chars":4096},"cells_cut":0,"cells_raw":0,"read":"whole","date_system":"1900"}

{"sheet":"NEO","index":0,"n_rows":98,"n_cols":42,"rows_kept":98,"cut":false,"hidden":false,"merged":[]}
["NOME 1 (RN)","NOME 2 (PRÓPRIO)","ATEND RN","ATEND PRÓP","SEXO","ADMISSÃO","HORA","DN","IG SEM","IG DIA","PESO (G)","IG/PESO","PROCEDÊNCIA","PARTO","PROTOCOLO","INDICAÇÃO","RCP","IOT","PRIORIDADE","PERFIL","DIAGNÓSTICO","DESCRIÇÃO DIAG","COMORBIDADE","DESCRIÇÃO COMORB","ALTA P/ ENF <24H?","ADMISSÃO >48H VIDA?","MORIBUNDO?","SNAPPE II","RISCO","READMISSÃO <48H?","DESFECHO","ALTA_SOLICITADA","ALTA_EFETIVA","PESO ALTA (G)","DIAS DE HOSPITALIZAÇÃO","DIAS ESPERA LEITO","PESO >1.500g","IG >34sem","ESTABILIDADE HEMOD","DIETA ENTERAL OU PARENTERAL EM TRANSIÇÃO","SEPSE CONTROLADA","MONITORIZAÇÃO E CUIDADOS INTENSIVOS DESNECESSÁRIOS"]
[null,null,113358594,114233881,"MASCULINO","2024-02-11",null,"2024-02-11",30,2,1540,"AIG","CENTRO CIRÚRGICO",null,true,"Desconforto respiratório (Boletim de Silverman-Andersen >5)",false,false,"PRIORIDADE 1","CLÍNICO","DMH",null,"INFECÇÃO","SEPSE NEO PRECOCE E TARDIA","NÃO","NÃO","NÃO",null,null,"NÃO","ÓBITO",null,"2024-03-25",2436,{"$f":"IF(IF([1]!TB_BASE_NEO[[#This Row],[ALTA_EFETIVA]]=\"\", TODAY(), [1]!TB_BASE_NEO[[#This Row],[ALTA_EFETIVA]])=\"\",_xlfn.DAYS(TODAY()+1,[1]!TB_BASE_NEO[[#This Row],[ADMISSÃO]]),_xlfn.DAYS(IF([1]!TB_BASE_NEO[[#This Row],[ALTA_EFETIVA]]=\"\", TODAY(), [1]!TB_BASE_NEO[[#This Row],[ALTA_EFETIVA]]),[1]!TB_BASE_NEO[[#This Row],[ADMISSÃO]])+1)","v":44},{"$f":"IF(OR(AF2=0,AG2=0),0,_xlfn.DAYS(AG2,AF2))","v":0},true,false,false,false,false,false]
[null,null,118014471,null,"MASCULINO","2024-04-29",null,"2024-04-29",32,0,1972,"AIG","CENTRO CIRÚRGICO",null,true,"Desconforto respiratório (Boletim de Silverman-Andersen >5)",false,true,"PRIORIDADE 1","CLÍNICO","DMH",null,null,null,"NÃO","NÃO","NÃO",null,null,"NÃO","ÓBITO",null,"2024-05-10",1742,{"$f":"IF([1]!TB_BASE_NEO[[#This Row],[ALTA_EFETIVA]]=\"\",_xlfn.DAYS(TODAY()+1,[1]!TB_BASE_NEO[[#This Row],[ADMISSÃO]]),_xlfn.DAYS([1]!TB_BASE_NEO[[#This Row],[ALTA_EFETIVA]],[1]!TB_BASE_NEO[[#This Row],[ADMISSÃO]])+1)","v":12},0,true,false,false,false,false,false]
[null,null,118189990,119893958,"FEMININO","2024-05-01",null,"2024-05-01",37,6,1880,"AIG","CENTRO CIRÚRGICO",null,true,"Desconforto respiratório (Boletim de Silverman-Andersen >5)",true,false,"PRIORIDADE 1","CLÍNICO","TTRN",null,null,null,"NÃO","NÃO","NÃO",null,null,"NÃO","ÓBITO",null,"2024-06-05",2060,{"$f":"IF([1]!TB_BASE_NEO[[#This Row],[ALTA_EFETIVA]]=\"\",_xlfn.DAYS(TODAY()+1,[1]!TB_BASE_NEO[[#This Row],[ADMISSÃO]]),_xlfn.DAYS([1]!TB_BASE_NEO[[#This Row],[ALTA_EFETIVA]],[1]!TB_BASE_NEO[[#This Row],[ADMISSÃO]])+1)","v":36},0,true,false,false,false,false,false]
[null,null,118904419,null,"MASCULINO","2024-05-14",null,"2024-05-14",35,6,3058,"AIG","CENTRO CIRÚRGICO",null,true,"Anóxia neonatal grave (APGAR 5 min <5)",true,false,"PRIORIDADE 1","CLÍNICO","ASFIXIA","TTRN + ASFIXIA",null,null,"NÃO","NÃO","NÃO",26,3.7999999999999999E-2,"NÃO","ALTA P/ ENFERMARIA",null,"2024-05-21",2660,{"$f":"IF([1]!TB_BASE_NEO[[#This Row],[ALTA_EFETIVA]]=\"\",_xlfn.DAYS(TODAY()+1,[1]!TB_BASE_NEO[[#This Row],[ADMISSÃO]]),_xlfn.DAYS([1]!TB_BASE_NEO[[#This Row],[ALTA_EFETIVA]],[1]!TB_BASE_NEO[[#This Row],[ADMISSÃO]])+1)","v":8},0,true,true,true,true,true,true]
[null,null,119221903,121326684,"FEMININO","2024-05-16",null,"2024-05-16",35,4,1400,"AIG","CENTRO CIRÚRGICO",null,true,"Peso ao nascer <1500g e/ou idade gestacional <34 semanas",false,false,"PRIORIDADE 1","CLÍNICO","PREMATURIDADE",null,null,null,"NÃO","NÃO","NÃO",12,1.6E-2,"NÃO","ALTA P/ ENFERMARIA",null,"2024-06-20",1680,{"$f":"IF([1]!TB_BASE_NEO[[#This Row],[ALTA_EFETIVA]]=\"\",_xlfn.DAYS(TODAY()+1,[1]!TB_BASE_NEO[[#This Row],[ADMISSÃO]]),_xlfn.DAYS([1]!TB_BASE_NEO[[#This Row],[ALTA_EFETIVA]],[1]!TB_BASE_NEO[[#This Row],[ADMISSÃO]])+1)","v":36},0,true,true,true,true,true,true]
[null,null,119694954,null,"FEMININO","2024-05-25",null,"2024-05-25",33,1,2016,"AIG","CENTRO CIRÚRGICO",null,true,"Distúrbio metabólico",false,false,"PRIORIDADE 1","CLÍNICO","HIPOGLICEMIA",null,null,null,"NÃO","NÃO","NÃO",0,3.0000000000000001E-3,"NÃO","ALTA P/ ENFERMARIA",null,"2024-06-12",1960,{"$f":"IF([1]!TB_BASE_NEO[[#This Row],[ALTA_EFETIVA]]=\"\",_xlfn.DAYS(TODAY()+1,[1]!TB_BASE_NEO[[#This Row],[ADMISSÃO]]),_xlfn.DAYS([1]!TB_BASE_NEO[[#This Row],[ALTA_EFETIVA]],[1]!TB_BASE_NEO[[#This Row],[ADMISSÃO]])+1)","v":19},{"$f":"IF(OR(AF7=0,AG7=0),0,_xlfn.DAYS(AG7,AF7))","v":0},true,true,true,true,true,true]
[null,null,119675540,121982854,"FEMININO","2024-05-26",null,"2024-05-26",35,5,2546,"AIG","CENTRO CIRÚRGICO",null,true,"Anomalia congênita importante que ameace as funções vitais",true,false,"PRIORIDADE 1","CLÍNICO","MAL-FORMAÇÃO","ATRESIA DE ESÔFAGO","CARDIPATIA CONGÊNITA","DSAVT","NÃO","NÃO","NÃO",null,null,"NÃO","ÓBITO",null,"2024-07-17",2260,{"$f":"IF([1]!TB_BASE_NEO[[#This Row],[ALTA_EFETIVA]]=\"\",_xlfn.DAYS(TODAY()+1,[1]!TB_BASE_NEO[[#This Row],[ADMISSÃO]]),_xlfn.DAYS([1]!TB_BASE_NEO[[#This Row],[ALTA_EFETIVA]],[1]!TB_BASE_NEO[[#This Row],[ADMISSÃO]])+1)","v":53},0,true,false,false,false,false,false]
[null,null,120713485,122946465,"MASCULINO","2024-06-09",null,"2024-06-09",28,1,1462,"AIG","CENTRO CIRÚRGICO",null,true,"Necessidade de suporte ventilatório",true,true,"PRIORIDADE 1","CLÍNICO","DMH",null,null,null,"NÃO","NÃO","NÃO",9,3.0000000000000001E-3,"NÃO","ALTA P/ CASA",null,"2024-07-30",2282,{"$f":"IF([1]!TB_BASE_NEO[[#This Row],[ALTA_EFETIVA]]=\"\",_xlfn.DAYS(TODAY()+1,[1]!TB_BASE_NEO[[#This Row],[ADMISSÃO]]),_xlfn.DAYS([1]!TB_BASE_NEO[[#This Row],[ALTA_EFETIVA]],[1]!TB_BASE_NEO[[#This Row],[ADMISSÃO]])+1)","v":52},0,true,true,true,true,true,true]
[null,null,120846277,null,"MASCULINO","2024-06-12",null,"2024-06-12",38,2,3330,"AIG","CENTRO CIRÚRGICO",null,true,"Desconforto respiratório (Boletim de Silverman-Andersen >5)",true,false,"PRIORIDADE 1","CLÍNICO","TTRN",null,null,null,"SIM","NÃO","NÃO",0,3.0000000000000001E-3,"NÃO","ALTA P/ ENFERMARIA",null,"2024-06-13",3330,{"$f":"IF([1]!TB_BASE_NEO[[#This Row],[ALTA_EFETIVA]]=\"\",_xlfn.DAYS(TODAY()+1,[1]!TB_BASE_NEO[[#This Row],[ADMISSÃO]]),_xlfn.DAYS([1]!TB_BASE_NEO[[#This Row],[ALTA_EFETIVA]],[1]!TB_BASE_NEO[[#This Row],[ADMISSÃO]])+1)","v":2},0,true,true,true,true,true,true]
[null,null,120908935,null,"FEMININO","2024-06-12",null,"2024-06-12",35,4,1534,"AIG","CENTRO CIRÚRGICO",null,false,"Outros",false,false,"PRIORIDADE 1","CLÍNICO","BAIXO PESO","ÚNICO CRITÉRIO FOI BAIXO PESO",null,null,"NÃO","NÃO","NÃO",0,3.0000000000000001E-3,"NÃO","ALTA P/ ENFERMARIA",null,"2024-06-29",1652,{"$f":"IF([1]!TB_BASE_NEO[[#This Row],[ALTA_EFETIVA]]=\"\",_xlfn.DAYS(TODAY()+1,[1]!TB_BASE_NEO[[#This Row],[ADMISSÃO]]),_xlfn.DAYS([1]!TB_BASE_NEO[[#This Row],[ALTA_EFETIVA]],[1]!TB_BASE_NEO[[#This Row],[ADMISSÃO]])+1)","v":18},0,true,true,true,true,true,true]
[null,null,120972202,null,"MASCULINO","2024-06-14",null,"2024-06-14",38,0,3540,"AIG","CENTRO CIRÚRGICO",null,true,"Desconforto respiratório (Boletim de Silverman-Andersen >5)",true,false,"PRIORIDADE 1","CLÍNICO","TTRN",null,null,null,"SIM","NÃO","NÃO",0,3.0000000000000001E-3,"NÃO","ALTA P/ ENFERMARIA",null,"2024-06-15",3456,{"$f":"IF([1]!TB_BASE_NEO[[#This Row],[ALTA_EFETIVA]]=\"\",_xlfn.DAYS(TODAY()+1,[1]!TB_BASE_NEO[[#This Row],[ADMISSÃO]]),_xlfn.DAYS([1]!TB_BASE_NEO[[#This Row],[ALTA_EFETIVA]],[1]!TB_BASE_NEO[[#This Row],[ADMISSÃO]])+1)","v":2},0,true,true,true,true,true,true]
[null,null,121482556,null,"MASCULINO","2024-06-20",null,"2024-06-20",38,1,2530,"AIG","ENFERMARIA",null,true,"Distúrbio metabólico",false,false,"PRIORIDADE 1","CLÍNICO","HIPOGLICEMIA",null,null,null,"NÃO","NÃO","NÃO",0,3.0000000000000001E-3,"NÃO","ALTA P/ ENFERMARIA",null,"2024-06-25",2366,{"$f":"IF([1]!TB_BASE_NEO[[#This Row],[ALTA_EFETIVA]]=\"\",_xlfn.DAYS(TODAY()+1,[1]!TB_BASE_NEO[[#This Row],[ADMISSÃO]]),_xlfn.DAYS([1]!TB_BASE_NEO[[#This Row],[ALTA_EFETIVA]],[1]!TB_BASE_NEO[[#This Row],[ADMISSÃO]])+1)","v":6},0,true,true,true,true,true,true]
[null,null,121475162,null,"FEMININO","2024-06-20",null,"2024-06-20",38,0,2206,"AIG","CENTRO CIRÚRGICO",null,true,"Anomalia congênita importante que ameace as funções vitais",true,false,"PRIORIDADE 1","CLÍNICO","MAL-FORMAÇÃO","OSTEOGÊNESE IMPERFEITA",null,null,"NÃO","NÃO","NÃO",0,3.0000000000000001E-3,"NÃO","ÓBITO PALIATIVO",null,"2024-07-06",2612,{"$f":"IF([1]!TB_BASE_NEO[[#This Row],[ALTA_EFETIVA]]=\"\",_xlfn.DAYS(TODAY()+1,[1]!TB_BASE_NEO[[#This Row],[ADMISSÃO]]),_xlfn.DAYS([1]!TB_BASE_NEO[[#This Row],[ALTA_EFETIVA]],[1]!TB_BASE_NEO[[#This Row],[ADMISSÃO]])+1)","v":17},0,true,false,false,false,false,false]
[null,null,122071987,null,"FEMININO","2024-06-27",null,"2024-06-27",34,0,2088,"AIG","CENTRO CIRÚRGICO",null,true,"Desconforto respiratório (Boletim de Silverman-Andersen >5)",false,false,"PRIORIDADE 1","CLÍNICO","TTRN",null,null,null,"SIM","NÃO","NÃO",0,3.0000000000000001E-3,"NÃO","ALTA P/ ENFERMARIA",null,"2024-06-27",2088,{"$f":"IF([1]!TB_BASE_NEO[[#This Row],[ALTA_EFETIVA]]=\"\",_xlfn.DAYS(TODAY()+1,[1]!TB_BASE_NEO[[#This Row],[ADMISSÃO]]),_xlfn.DAYS([1]!TB_BASE_NEO[[#This Row],[ALTA_EFETIVA]],[1]!TB_BASE_NEO[[#This Row],[ADMISSÃO]])+1)","v":1},0,true,true,true,true,true,true]
[null,null,122232350,null,"FEMININO","2024-06-29",null,"2024-06-29",33,3,1992,"AIG","CENTRO CIRÚRGICO",null,true,"Desconforto respiratório (Boletim de Silverman-Andersen >5)",false,false,"PRIORIDADE 1","CLÍNICO","TTRN",null,null,null,"NÃO","NÃO","NÃO",0,3.0000000000000001E-3,"NÃO","ALTA P/ ENFERMARIA",null,"2024-07-05",1854,{"$f":"IF([1]!TB_BASE_NEO[[#This Row],[ALTA_EFETIVA]]=\"\",_xlfn.DAYS(TODAY()+1,[1]!TB_BASE_NEO[[#This Row],[ADMISSÃO]]),_xlfn.DAYS([1]!TB_BASE_NEO[[#This Row],[ALTA_EFETIVA]],[1]!TB_BASE_NEO[[#This Row],[ADMISSÃO]])+1)","v":7},0,true,true,true,true,true,true]
[null,null,122352309,124622630,"FEMININO","2024-07-01",null,"2024-07-01",32,1,1254,"AIG","CENTRO CIRÚRGICO",null,true,"Peso ao nascer <1500g e/ou idade gestacional <34 semanas",false,false,"PRIORIDADE 1","CLÍNICO","PREMATURIDADE",null,null,null,"NÃO","NÃO","NÃO",0,3.0000000000000001E-3,"NÃO","ALTA P/ ENFERMARIA",null,"2024-08-04",1628,{"$f":"IF([1]!TB_BASE_NEO[[#This Row],[ALTA_EFETIVA]]=\"\",_xlfn.DAYS(TODAY()+1,[1]!TB_BASE_NEO[[#This Row],[ADMISSÃO]]),_xlfn.DAYS([1]!TB_BASE_NEO[[#This Row],[ALTA_EFETIVA]],[1]!TB_BASE_NEO[[#This Row],[ADMISSÃO]])+1)","v":35},0,true,true,true,true,true,true]
[null,null,122879801,null,"FEMININO","2024-07-05",null,"2024-07-03",34,4,1736,"AIG","ENFERMARIA",null,true,"Distúrbio metabólico",false,false,"PRIORIDADE 1","CLÍNICO","HIPOGLICEMIA",null,null,null,"NÃO","SIM","NÃO",0,3.0000000000000001E-3,"NÃO","ALTA P/ ENFERMARIA",null,"2024-07-11",1574,{"$f":"IF([1]!TB_BASE_NEO[[#This Row],[ALTA_EFETIVA]]=\"\",_xlfn.DAYS(TODAY()+1,[1]!TB_BASE_NEO[[#This Row],[ADMISSÃO]]),_xlfn.DAYS([1]!TB_BASE_NEO[[#This Row],[ALTA_EFETIVA]],[1]!TB_BASE_NEO[[#This Row],[ADMISSÃO]])+1)","v":7},0,true,true,true,true,true,true]
[null,null,122851764,null,"MASCULINO","2024-07-08",null,"2024-07-08",37,3,3226,"AIG","CENTRO CIRÚRGICO",null,true,"Infecção grave com instabilidade hemodinâmica e/ou clínica",true,false,"PRIORIDADE 1","CLÍNICO","SEPSE PRECOCE",null,null,null,"NÃO","NÃO","NÃO",0,3.0000000000000001E-3,"NÃO","ALTA P/ ENFERMARIA",null,"2024-07-28",3100,{"$f":"IF([1]!TB_BASE_NEO[[#This Row],[ALTA_EFETIVA]]=\"\",_xlfn.DAYS(TODAY()+1,[1]!TB_BASE_NEO[[#This Row],[ADMISSÃO]]),_xlfn.DAYS([1]!TB_BASE_NEO[[#This Row],[ALTA_EFETIVA]],[1]!TB_BASE_NEO[[#This Row],[ADMISSÃO]])+1)","v":21},0,true,true,true,true,true,true]
[null,null,123372194,null,"FEMININO","2024-07-16",null,"2024-06-28",35,0,2480,"AIG","CENTRO CIRÚRGICO",null,true,"Necessidade de suporte ventilatório",false,false,"PRIORIDADE 1","CLÍNICO","BRONQUIOLITE","PCT NO 18º DDV E 2º DIH",null,null,"NÃO","SIM","NÃO",0,3.0000000000000001E-3,"NÃO","ALTA P/ CASA",null,"2024-07-24",2518,{"$f":"IF([1]!TB_BASE_NEO[[#This Row],[ALTA_EFETIVA]]=\"\",_xlfn.DAYS(TODAY()+1,[1]!TB_BASE_NEO[[#This Row],[ADMISSÃO]]),_xlfn.DAYS([1]!TB_BASE_NEO[[#This Row],[ALTA_EFETIVA]],[1]!TB_BASE_NEO[[#This Row],[ADMISSÃO]])+1)","v":9},0,true,true,true,true,true,true]
[null,null,124145824,null,"MASCULINO","2024-07-26",null,"2024-07-26",39,2,3540,"AIG","ENFERMARIA",null,true,"Necessidade de suporte ventilatório",false,false,"PRIORIDADE 1","CLÍNICO","BRONCOASPIRAÇÃO",null,null,null,"NÃO","NÃO","NÃO",5,3.0000000000000001E-3,"NÃO","ALTA P/ ENFERMARIA",null,"2024-07-27",3440,{"$f":"IF([1]!TB_BASE_NEO[[#This Row],[ALTA_EFETIVA]]=\"\",_xlfn.DAYS(TODAY()+1,[1]!TB_BASE_NEO[[#This Row],[ADMISSÃO]]),_xlfn.DAYS([1]!TB_BASE_NEO[[#This Row],[ALTA_EFETIVA]],[1]!TB_BASE_NEO[[#This Row],[ADMISSÃO]])+1)","v":2},0,true,true,true,true,true,true]
[null,null,124557594,null,"MASCULINO","2024-07-31",null,"2024-07-31",37,6,3310,"AIG","CENTRO CIRÚRGICO",null,true,"Desconforto respiratório (Boletim de Silverman-Andersen >5)",true,false,"PRIORIDADE 1","CLÍNICO","TTRN",null,null,null,"NÃO","NÃO","NÃO",34,7.3999999999999996E-2,"NÃO","ALTA P/ CASA",null,"2024-08-08",2946,{"$f":"IF([1]!TB_BASE_NEO[[#This Row],[ALTA_EFETIVA]]=\"\",_xlfn.DAYS(TODAY()+1,[1]!TB_BASE_NEO[[#This Row],[ADMISSÃO]]),_xlfn.DAYS([1]!TB_BASE_NEO[[#This Row],[ALTA_EFETIVA]],[1]!TB_BASE_NEO[[#This Row],[ADMISSÃO]])+1)","v":9},0,true,true,true,true,true,true]
[null,null,125101758,null,"MASCULINO","2024-08-08",null,"2024-08-08",38,4,3920,"GIG","CENTRO CIRÚRGICO",null,true,"Desconforto respiratório (Boletim de Silverman-Andersen >5)",false,false,"PRIORIDADE 1","CLÍNICO","TTRN",null,null,null,"SIM","NÃO","NÃO",0,3.0000000000000001E-3,"NÃO","ALTA P/ ENFERMARIA","2024-08-09","2024-08-09",3920,{"$f":"IF([1]!TB_BASE_NEO[[#This Row],[ALTA_EFETIVA]]=\"\",_xlfn.DAYS(TODAY()+1,[1]!TB_BASE_NEO[[#This Row],[ADMISSÃO]]),_xlfn.DAYS([1]!TB_BASE_NEO[[#This Row],[ALTA_EFETIVA]],[1]!TB_BASE_NEO[[#This Row],[ADMISSÃO]])+1)","v":2},0,true,true,true,true,true,true]
[null,null,125164092,null,"MASCULINO","2024-08-09",null,"2024-08-09",39,3,3058,"AIG","CENTRO CIRÚRGICO",null,true,"Anóxia neonatal grave (APGAR 5 min <5)",true,false,"PRIORIDADE 1","CLÍNICO","ASFIXIA",null,"MÃE VDRL REAGENTE 1:4",null,"NÃO","NÃO","NÃO",0,3.0000000000000001E-3,"NÃO","ALTA P/ ENFERMARIA","2024-08-13","2024-08-13",2882,{"$f":"IF([1]!TB_BASE_NEO[[#This Row],[ALTA_EFETIVA]]=\"\",_xlfn.DAYS(TODAY()+1,[1]!TB_BASE_NEO[[#This Row],[ADMISSÃO]]),_xlfn.DAYS([1]!TB_BASE_NEO[[#This Row],[ALTA_EFETIVA]],[1]!TB_BASE_NEO[[#This Row],[ADMISSÃO]])+1)","v":5},0,true,true,true,true,true,true]
[null,null,125452960,null,"FEMININO","2024-08-13",null,"2024-08-13",35,6,2090,"AIG","ENFERMARIA",null,true,"Desconforto respiratório (Boletim de Silverman-Andersen >5)",true,false,"PRIORIDADE 1","CLÍNICO","TTRN",null,null,null,"NÃO","NÃO","NÃO",0,3.0000000000000001E-3,"NÃO","ALTA P/ ENFERMARIA","2024-08-14","2024-08-14",2034,{"$f":"IF([1]!TB_BASE_NEO[[#This Row],[ALTA_EFETIVA]]=\"\",_xlfn.DAYS(TODAY()+1,[1]!TB_BASE_NEO[[#This Row],[ADMISSÃO]]),_xlfn.DAYS([1]!TB_BASE_NEO[[#This Row],[ALTA_EFETIVA]],[1]!TB_BASE_NEO[[#This Row],[ADMISSÃO]])+1)","v":2},0,true,true,true,true,true,true]
[null,null,125846005,null,"MASCULINO","2024-08-18",null,"18/082024",36,6,2426,"AIG","CENTRO CIRÚRGICO",null,true,"Desconforto respiratório (Boletim de Silverman-Andersen >5)",true,false,"PRIORIDADE 1","CLÍNICO","MAL-FORMAÇÃO","CARDIOPATIA CONGÊNITA","PREMATURIDADE",null,"NÃO","NÃO","NÃO",28,0.05,"NÃO","ÓBITO","2024-08-20","2024-08-20",2426,{"$f":"IF([1]!TB_BASE_NEO[[#This Row],[ALTA_EFETIVA]]=\"\",_xlfn.DAYS(TODAY()+1,[1]!TB_BASE_NEO[[#This Row],[ADMISSÃO]]),_xlfn.DAYS([1]!TB_BASE_NEO[[#This Row],[ALTA_EFETIVA]],[1]!TB_BASE_NEO[[#This Row],[ADMISSÃO]])+1)","v":3},0,true,false,false,false,false,false]
[null,null,126048924,null,"FEMININO","2024-08-21",null,"2024-08-21",33,4,1850,"AIG","CENTRO CIRÚRGICO",null,false,"Outros",false,false,"PRIORIDADE 1","CLÍNICO","PREMATURIDADE",null,null,null,"NÃO","NÃO","NÃO",5,3.0000000000000001E-3,"NÃO","ALTA P/ ENFERMARIA","2024-09-06","2024-09-06",1762,{"$f":"IF([1]!TB_BASE_NEO[[#This Row],[ALTA_EFETIVA]]=\"\",_xlfn.DAYS(TODAY()+1,[1]!TB_BASE_NEO[[#This Row],[ADMISSÃO]]),_xlfn.DAYS([1]!TB_BASE_NEO[[#This Row],[ALTA_EFETIVA]],[1]!TB_BASE_NEO[[#This Row],[ADMISSÃO]])+1)","v":17},0,true,true,true,true,true,true]
[null,null,126451725,null,"MASCULINO","2024-08-26",null,"2024-08-26",39,1,3690,"GIG","CENTRO CIRÚRGICO",null,true,"Anóxia neonatal grave (APGAR 5 min <5)",true,true,"PRIORIDADE 1","CLÍNICO","ASFIXIA",null,"LRA","DEVIDO ASFIXIA","NÃO","NÃO","NÃO",5,3.0000000000000001E-3,"NÃO","ALTA P/ ENFERMARIA","2024-08-30","2024-08-30",4024,{"$f":"IF([1]!TB_BASE_NEO[[#This Row],[ALTA_EFETIVA]]=\"\",_xlfn.DAYS(TODAY()+1,[1]!TB_BASE_NEO[[#This Row],[ADMISSÃO]]),_xlfn.DAYS([1]!TB_BASE_NEO[[#This Row],[ALTA_EFETIVA]],[1]!TB_BASE_NEO[[#This Row],[ADMISSÃO]])+1)","v":5},0,true,true,true,true,true,true]
[null,null,126769821,129260530,"MASCULINO","2024-08-30",null,"2024-08-30",30,6,1238,"AIG","CENTRO CIRÚRGICO",null,true,"Peso ao nascer <1500g e/ou idade gestacional <34 semanas",false,false,"PRIORIDADE 1","CLÍNICO","PREMATURIDADE",null,null,null,"NÃO","NÃO","NÃO",0,3.0000000000000001E-3,"NÃO","ALTA P/ ENFERMARIA","2024-10-08","2024-10-08",1718,{"$f":"IF([1]!TB_BASE_NEO[[#This Row],[ALTA_EFETIVA]]=\"\",_xlfn.DAYS(TODAY()+1,[1]!TB_BASE_NEO[[#This Row],[ADMISSÃO]]),_xlfn.DAYS([1]!TB_BASE_NEO[[#This Row],[ALTA_EFETIVA]],[1]!TB_BASE_NEO[[#This Row],[ADMISSÃO]])+1)","v":40},0,true,true,true,true,true,true]
[null,null,126817372,null,"MASCULINO","2024-08-30",null,"2024-08-30",35,0,1520,"AIG","CENTRO CIRÚRGICO",null,true,"Necessidade de suporte ventilatório",true,true,"PRIORIDADE 1","CLÍNICO","MAL-FORMAÇÃO","PATAU","PREMATURIDADE",null,"NÃO","NÃO","NÃO",24,2.8000000000000001E-2,"NÃO","ÓBITO PALIATIVO",null,"2024-09-09",1670,{"$f":"IF([1]!TB_BASE_NEO[[#This Row],[ALTA_EFETIVA]]=\"\",_xlfn.DAYS(TODAY()+1,[1]!TB_BASE_NEO[[#This Row],[ADMISSÃO]]),_xlfn.DAYS([1]!TB_BASE_NEO[[#This Row],[ALTA_EFETIVA]],[1]!TB_BASE_NEO[[#This Row],[ADMISSÃO]])+1)","v":11},0,true,false,false,false,false,false]
[null,null,127149398,null,"MASCULINO","2024-09-04",null,"2024-09-04",36,5,3480,"AIG","CENTRO CIRÚRGICO",null,true,"Desconforto respiratório (Boletim de Silverman-Andersen >5)",false,false,"PRIORIDADE 1","CLÍNICO","TTRN",null,null,null,"NÃO","NÃO","NÃO",0,3.0000000000000001E-3,"NÃO","ALTA P/ ENFERMARIA","2024-09-06","2024-09-06",3272,{"$f":"IF([1]!TB_BASE_NEO[[#This Row],[ALTA_EFETIVA]]=\"\",_xlfn.DAYS(TODAY()+1,[1]!TB_BASE_NEO[[#This Row],[ADMISSÃO]]),_xlfn.DAYS([1]!TB_BASE_NEO[[#This Row],[ALTA_EFETIVA]],[1]!TB_BASE_NEO[[#This Row],[ADMISSÃO]])+1)","v":3},0,true,true,true,true,true,true]
[null,null,127755469,130048074,"MASCULINO","2024-09-11",null,"2024-09-11",35,5,900,"PIG","CENTRO CIRÚRGICO",null,true,"Peso ao nascer <1500g e/ou idade gestacional <34 semanas",true,true,"PRIORIDADE 1","CLÍNICO","PREMATURIDADE","PREMATURIDADE","DMH",null,"NÃO","NÃO","NÃO",17,1.6E-2,"NÃO","MUDOU P/ UTIP",null,"2024-10-10",900,{"$f":"IF([1]!TB_BASE_NEO[[#This Row],[ALTA_EFETIVA]]=\"\",_xlfn.DAYS(TODAY()+1,[1]!TB_BASE_NEO[[#This Row],[ADMISSÃO]]),_xlfn.DAYS([1]!TB_BASE_NEO[[#This Row],[ALTA_EFETIVA]],[1]!TB_BASE_NEO[[#This Row],[ADMISSÃO]])+1)","v":30},0,false,false,false,false,false,false]
[null,null,128133887,null,"MASCULINO","2024-09-14",null,"2024-09-14",28,1,546,"PIG","CENTRO CIRÚRGICO",null,true,"Peso ao nascer <1500g e/ou idade gestacional <34 semanas",true,true,"PRIORIDADE 1","CLÍNICO","PREMATURIDADE","PREMATURIDADE","DMH",null,"NÃO","NÃO","NÃO",54,0.216,"NÃO","ÓBITO",null,"2024-09-26",516,{"$f":"IF([1]!TB_BASE_NEO[[#This Row],[ALTA_EFETIVA]]=\"\",_xlfn.DAYS(TODAY()+1,[1]!TB_BASE_NEO[[#This Row],[ADMISSÃO]]),_xlfn.DAYS([1]!TB_BASE_NEO[[#This Row],[ALTA_EFETIVA]],[1]!TB_BASE_NEO[[#This Row],[ADMISSÃO]])+1)","v":13},0,false,false,false,false,false,false]
[null,null,128209936,null,"MASCULINO","2024-09-17",null,"2024-09-17",35,3,3168,"AIG","CENTRO CIRÚRGICO",null,true,"Desconforto respiratório (Boletim de Silverman-Andersen >5)",false,false,"PRIORIDADE 1","CLÍNICO","SEPSE PRECOCE","PNM CONGÊNITA?",null,null,"NÃO","NÃO","NÃO",28,3.5999999999999997E-2,"NÃO","ALTA P/ ENFERMARIA","2024-09-22","2024-09-22",2910,{"$f":"IF([1]!TB_BASE_NEO[[#This Row],[ALTA_EFETIVA]]=\"\",_xlfn.DAYS(TODAY()+1,[1]!TB_BASE_NEO[[#This Row],[ADMISSÃO]]),_xlfn.DAYS([1]!TB_BASE_NEO[[#This Row],[ALTA_EFETIVA]],[1]!TB_BASE_NEO[[#This Row],[ADMISSÃO]])+1)","v":6},0,true,true,true,true,true,true]
[null,null,128719685,null,"FEMININO","2024-09-23",null,"2024-09-23",24,6,748,"AIG","CENTRO CIRÚRGICO",null,true,"Peso ao nascer <1500g e/ou idade gestacional <34 semanas",false,false,"PRIORIDADE 1","CLÍNICO","PREMATURIDADE","PREMATURIDADE","SEPSE","SEPSE NEO PRECOCE","NÃO","NÃO","NÃO",24,3.5999999999999997E-2,"NÃO","ÓBITO",null,"2024-09-28",748,{"$f":"IF([1]!TB_BASE_NEO[[#This Row],[ALTA_EFETIVA]]=\"\",_xlfn.DAYS(TODAY()+1,[1]!TB_BASE_NEO[[#This Row],[ADMISSÃO]]),_xlfn.DAYS([1]!TB_BASE_NEO[[#This Row],[ALTA_EFETIVA]],[1]!TB_BASE_NEO[[#This Row],[ADMISSÃO]])+1)","v":6},0,false,false,false,false,false,false]
[null,null,129510554,null,"MASCULINO","2024-10-03",null,"2024-10-03",38,6,3478,"AIG","CENTRO CIRÚRGICO",null,false,"Outros",false,false,"PRIORIDADE 1","CLÍNICO","TTRN",null,null,null,"NÃO","NÃO","NÃO",0,3.0000000000000001E-3,"NÃO","ALTA P/ ENFERMARIA","2024-10-04","2024-10-04",3478,{"$f":"IF([1]!TB_BASE_NEO[[#This Row],[ALTA_EFETIVA]]=\"\",_xlfn.DAYS(TODAY()+1,[1]!TB_BASE_NEO[[#This Row],[ADMISSÃO]]),_xlfn.DAYS([1]!TB_BASE_NEO[[#This Row],[ALTA_EFETIVA]],[1]!TB_BASE_NEO[[#This Row],[ADMISSÃO]])+1)","v":2},0,true,true,true,true,true,true]
[null,null,129996487,null,"MASCULINO","2024-10-10",null,"2024-10-10",37,4,3620,"GIG","CENTRO CIRÚRGICO",null,true,"Desconforto respiratório (Boletim de Silverman-Andersen >5)",true,false,"PRIORIDADE 1","CLÍNICO","TTRN",null,"GIG",null,"NÃO","NÃO","NÃO",0,3.0000000000000001E-3,"NÃO","ALTA P/ ENFERMARIA","2024-10-11","2024-10-11",3620,{"$f":"IF([1]!TB_BASE_NEO[[#This Row],[ALTA_EFETIVA]]=\"\",_xlfn.DAYS(TODAY()+1,[1]!TB_BASE_NEO[[#This Row],[ADMISSÃO]]),_xlfn.DAYS([1]!TB_BASE_NEO[[#This Row],[ALTA_EFETIVA]],[1]!TB_BASE_NEO[[#This Row],[ADMISSÃO]])+1)","v":2},0,true,true,true,true,true,true]
[null,null,131795006,null,"FEMININO","2024-11-03",null,"2024-11-03",36,5,4640,"GIG","CENTRO CIRÚRGICO",null,true,"Distúrbio metabólico",false,false,"PRIORIDADE 1","CLÍNICO","HIPOGLICEMIA",null,"MACROSSOMIA + GIG","MÃE DM","NÃO","NÃO","NÃO",16,1.6E-2,"NÃO","ALTA P/ ENFERMARIA","2024-11-05","2024-11-05",4296,{"$f":"IF([1]!TB_BASE_NEO[[#This Row],[ALTA_EFETIVA]]=\"\",_xlfn.DAYS(TODAY()+1,[1]!TB_BASE_NEO[[#This Row],[ADMISSÃO]]),_xlfn.DAYS([1]!TB_BASE_NEO[[#This Row],[ALTA_EFETIVA]],[1]!TB_BASE_NEO[[#This Row],[ADMISSÃO]])+1)","v":3},0,true,true,true,true,true,true]
[null,null,132429826,null,"MASCULINO","2024-11-11",null,"2024-10-13",37,4,2574,"AIG","CENTRO CIRÚRGICO",null,true,"Pós-operatório de grandes cirurgias do período neonatal",false,false,"PRIORIDADE 1","CLÍNICO","HIPERTROFIA DE PILORO","PO CORREÇÃO CICÚRGICA",null,null,"NÃO","SIM","NÃO",0,3.0000000000000001E-3,"NÃO","ALTA P/ ENFERMARIA","2024-11-18","2024-11-19",3430,{"$f":"IF([1]!TB_BASE_NEO[[#This Row],[ALTA_EFETIVA]]=\"\",_xlfn.DAYS(TODAY()+1,[1]!TB_BASE_NEO[[#This Row],[ADMISSÃO]]),_xlfn.DAYS([1]!TB_BASE_NEO[[#This Row],[ALTA_EFETIVA]],[1]!TB_BASE_NEO[[#This Row],[ADMISSÃO]])+1)","v":9},1,true,true,true,true,true,true]
[null,null,132458193,null,"MASCULINO","2024-11-12",null,"2024-11-12",35,0,2784,"AIG","CENTRO CIRÚRGICO",null,true,"Desconforto respiratório (Boletim de Silverman-Andersen >5)",false,false,"PRIORIDADE 1","CLÍNICO","TTRN",null,null,null,"SIM","NÃO","NÃO",0,3.0000000000000001E-3,"NÃO","ALTA P/ ENFERMARIA","2024-11-12","2024-11-12",2784,{"$f":"IF([1]!TB_BASE_NEO[[#This Row],[ALTA_EFETIVA]]=\"\",_xlfn.DAYS(TODAY()+1,[1]!TB_BASE_NEO[[#This Row],[ADMISSÃO]]),_xlfn.DAYS([1]!TB_BASE_NEO[[#This Row],[ALTA_EFETIVA]],[1]!TB_BASE_NEO[[#This Row],[ADMISSÃO]])+1)","v":1},0,true,true,true,true,true,true]
[null,null,133699490,null,"MASCULINO","2024-11-28",null,"2024-11-28",31,5,1920,"AIG","CENTRO CIRÚRGICO",null,true,"Peso ao nascer <1500g e/ou idade gestacional <34 semanas",false,false,"PRIORIDADE 1","CLÍNICO","PREMATURIDADE","PREMATURIDADE","TTRN",null,"NÃO","NÃO","NÃO",0,3.0000000000000001E-3,"NÃO","ALTA P/ ENFERMARIA","2024-12-19","2024-12-19",2036,{"$f":"IF([1]!TB_BASE_NEO[[#This Row],[ALTA_EFETIVA]]=\"\",_xlfn.DAYS(TODAY()+1,[1]!TB_BASE_NEO[[#This Row],[ADMISSÃO]]),_xlfn.DAYS([1]!TB_BASE_NEO[[#This Row],[ALTA_EFETIVA]],[1]!TB_BASE_NEO[[#This Row],[ADMISSÃO]])+1)","v":22},0,true,true,true,true,true,true]
[null,null,133699494,null,"MASCULINO","2024-11-28",null,"2024-11-28",31,5,1630,"AIG","CENTRO CIRÚRGICO",null,true,"Peso ao nascer <1500g e/ou idade gestacional <34 semanas",false,false,"PRIORIDADE 1","CLÍNICO","PREMATURIDADE","PREMATURIDADE","DMH",null,"NÃO","NÃO","NÃO",0,3.0000000000000001E-3,"NÃO","ALTA P/ ENFERMARIA","2024-12-19","2024-12-19",1690,{"$f":"IF([1]!TB_BASE_NEO[[#This Row],[ALTA_EFETIVA]]=\"\",_xlfn.DAYS(TODAY()+1,[1]!TB_BASE_NEO[[#This Row],[ADMISSÃO]]),_xlfn.DAYS([1]!TB_BASE_NEO[[#This Row],[ALTA_EFETIVA]],[1]!TB_BASE_NEO[[#This Row],[ADMISSÃO]])+1)","v":22},0,true,true,true,true,true,true]
[null,null,133713740,null,"MASCULINO","2024-11-29",null,"2024-11-29",34,4,2666,"AIG","CENTRO CIRÚRGICO",null,true,"Desconforto respiratório (Boletim de Silverman-Andersen >5)",true,false,"PRIORIDADE 1","CLÍNICO","TTRN",null,"PREMATURIDADE",null,"NÃO","NÃO","NÃO",0,3.0000000000000001E-3,"NÃO","ALTA P/ ENFERMARIA","2024-12-01","2024-12-01",2538,{"$f":"IF([1]!TB_BASE_NEO[[#This Row],[ALTA_EFETIVA]]=\"\",_xlfn.DAYS(TODAY()+1,[1]!TB_BASE_NEO[[#This Row],[ADMISSÃO]]),_xlfn.DAYS([1]!TB_BASE_NEO[[#This Row],[ALTA_EFETIVA]],[1]!TB_BASE_NEO[[#This Row],[ADMISSÃO]])+1)","v":3},0,true,true,true,true,true,true]
[null,null,133880912,null,"FEMININO","2024-12-01",null,"2024-12-01",33,4,2468,null,"CENTRO CIRÚRGICO",null,true,"Desconforto respiratório (Boletim de Silverman-Andersen >5)",false,false,"PRIORIDADE 1","CLÍNICO","TTRN",null,"PREMATURIDADE",null,"NÃO","NÃO","NÃO",0,3.0000000000000001E-3,"NÃO","ALTA P/ ENFERMARIA","2024-12-08","2024-12-08",2242,{"$f":"IF([1]!TB_BASE_NEO[[#This Row],[ALTA_EFETIVA]]=\"\",_xlfn.DAYS(TODAY()+1,[1]!TB_BASE_NEO[[#This Row],[ADMISSÃO]]),_xlfn.DAYS([1]!TB_BASE_NEO[[#This Row],[ALTA_EFETIVA]],[1]!TB_BASE_NEO[[#This Row],[ADMISSÃO]])+1)","v":8},0,true,true,true,true,true,true]
[null,null,133933994,null,"MASCULINO","2024-12-02",null,"2024-12-02",42,4,3370,"AIG","CENTRO CIRÚRGICO",null,true,"Necessidade de suporte ventilatório",false,true,"PRIORIDADE 1","CLÍNICO","SAM",null,"PÓS-DATISMO","IG 42s4d","NÃO","NÃO","NÃO",5,3.0000000000000001E-3,"NÃO","ALTA P/ ENFERMARIA","2024-12-05","2024-12-05",3390,{"$f":"IF([1]!TB_BASE_NEO[[#This Row],[ALTA_EFETIVA]]=\"\",_xlfn.DAYS(TODAY()+1,[1]!TB_BASE_NEO[[#This Row],[ADMISSÃO]]),_xlfn.DAYS([1]!TB_BASE_NEO[[#This Row],[ALTA_EFETIVA]],[1]!TB_BASE_NEO[[#This Row],[ADMISSÃO]])+1)","v":4},0,true,true,true,true,true,true]
[null,null,134142702,null,"FEMININO","2024-12-04",null,"2024-12-04",34,6,1930,"AIG","CENTRO CIRÚRGICO",null,true,"Desconforto respiratório (Boletim de Silverman-Andersen >5)",false,false,"PRIORIDADE 1","CLÍNICO","TTRN",null,"PREMATURIDADE",null,"NÃO","NÃO","NÃO",0,3.0000000000000001E-3,"NÃO","ALTA P/ ENFERMARIA","2024-12-08","2024-12-08",1898,{"$f":"IF([1]!TB_BASE_NEO[[#This Row],[ALTA_EFETIVA]]=\"\",_xlfn.DAYS(TODAY()+1,[1]!TB_BASE_NEO[[#This Row],[ADMISSÃO]]),_xlfn.DAYS([1]!TB_BASE_NEO[[#This Row],[ALTA_EFETIVA]],[1]!TB_BASE_NEO[[#This Row],[ADMISSÃO]])+1)","v":5},0,true,true,true,true,true,true]
[null,null,134233670,null,"MASCULINO","2024-12-09",null,"2024-12-09",34,4,1470,"AIG","CENTRO CIRÚRGICO",null,true,"Peso ao nascer <1500g e/ou idade gestacional <34 semanas",false,true,"PRIORIDADE 1","CLÍNICO","TTRN","PREMATURIDADE",null,null,"NÃO","NÃO","NÃO",0,3.0000000000000001E-3,"NÃO","ALTA P/ ENFERMARIA","2024-12-30","2024-12-30",1584,{"$f":"IF([1]!TB_BASE_NEO[[#This Row],[ALTA_EFETIVA]]=\"\",_xlfn.DAYS(TODAY()+1,[1]!TB_BASE_NEO[[#This Row],[ADMISSÃO]]),_xlfn.DAYS([1]!TB_BASE_NEO[[#This Row],[ALTA_EFETIVA]],[1]!TB_BASE_NEO[[#This Row],[ADMISSÃO]])+1)","v":22},0,true,true,true,true,true,true]
[null,null,134625044,null,"FEMININO","2024-12-11",null,"2024-12-11",34,4,1480,"PIG","CENTRO CIRÚRGICO",null,true,"Peso ao nascer <1500g e/ou idade gestacional <34 semanas",true,false,"PRIORIDADE 1","CLÍNICO","PREMATURIDADE","PIG",null,null,"NÃO","NÃO","NÃO",30,0.08,"NÃO","ALTA P/ ENFERMARIA","2024-12-21","2024-12-21",1484,{"$f":"IF([1]!TB_BASE_NEO[[#This Row],[ALTA_EFETIVA]]=\"\",_xlfn.DAYS(TODAY()+1,[1]!TB_BASE_NEO[[#This Row],[ADMISSÃO]]),_xlfn.DAYS([1]!TB_BASE_NEO[[#This Row],[ALTA_EFETIVA]],[1]!TB_BASE_NEO[[#This Row],[ADMISSÃO]])+1)","v":11},0,true,true,true,true,true,true]
[null,null,134846865,null,"MASCULINO","2024-12-14",null,"2024-12-14",25,2,682,"AIG","CENTRO CIRÚRGICO",null,true,"Peso ao nascer <1500g e/ou idade gestacional <34 semanas",true,true,"PRIORIDADE 1","CLÍNICO","PREMATURIDADE","PREMATURIDADE EXTREMA","DMH",null,"NÃO","NÃO","NÃO",52,0.214,"NÃO","ÓBITO",null,"2024-12-22",562,{"$f":"IF([1]!TB_BASE_NEO[[#This Row],[ALTA_EFETIVA]]=\"\",_xlfn.DAYS(TODAY()+1,[1]!TB_BASE_NEO[[#This Row],[ADMISSÃO]]),_xlfn.DAYS([1]!TB_BASE_NEO[[#This Row],[ALTA_EFETIVA]],[1]!TB_BASE_NEO[[#This Row],[ADMISSÃO]])+1)","v":9},0,false,false,false,false,false,false]
[null,null,135142030,null,"FEMININO","2024-12-18",null,"2024-12-19",39,1,2000,"PIG","CENTRO CIRÚRGICO",null,true,"Desconforto respiratório (Boletim de Silverman-Andersen >5)",true,false,"PRIORIDADE 1","CLÍNICO","MAL-FORMAÇÃO","EDWARDS","TTRN",null,"NÃO","NÃO","NÃO",47.6,0.74,"NÃO","ÓBITO PALIATIVO",null,"2025-01-04",2116,{"$f":"IF([1]!TB_BASE_NEO[[#This Row],[ALTA_EFETIVA]]=\"\",_xlfn.DAYS(TODAY()+1,[1]!TB_BASE_NEO[[#This Row],[ADMISSÃO]]),_xlfn.DAYS([1]!TB_BASE_NEO[[#This Row],[ALTA_EFETIVA]],[1]!TB_BASE_NEO[[#This Row],[ADMISSÃO]])+1)","v":18},0,true,false,false,false,false,false]
[null,null,136534780,null,"MASCULINO","2025-01-10",null,"2025-01-10",35,0,2942,"AIG","CENTRO CIRÚRGICO",null,true,"Desconforto respiratório (Boletim de Silverman-Andersen >5)",false,false,"PRIORIDADE 1","CLÍNICO","TTRN",null,"SÍNDROME DE DOWN","CONFIRMADO C/ CARIÓTIPO","NÃO","NÃO","NÃO",13,0.44,"NÃO","ALTA P/ ENFERMARIA","2025-01-14","2025-01-14",2722,{"$f":"IF([1]!TB_BASE_NEO[[#This Row],[ALTA_EFETIVA]]=\"\",_xlfn.DAYS(TODAY()+1,[1]!TB_BASE_NEO[[#This Row],[ADMISSÃO]]),_xlfn.DAYS([1]!TB_BASE_NEO[[#This Row],[ALTA_EFETIVA]],[1]!TB_BASE_NEO[[#This Row],[ADMISSÃO]])+1)","v":5},0,true,true,true,true,true,true]
[null,null,137045366,null,"FEMININO","2025-01-16",null,"2025-01-16",33,2,2110,"AIG","CENTRO CIRÚRGICO",null,true,"Anóxia neonatal grave (APGAR 5 min <5)",true,false,"PRIORIDADE 1","CLÍNICO","ASFIXIA NEO","PREMATURIDADE EM FUNÇÃO DE DPP",null,null,"NÃO","NÃO","NÃO",32,0.62,"NÃO","ALTA P/ ENFERMARIA","2025-01-22","2025-01-22",2142,{"$f":"IF([1]!TB_BASE_NEO[[#This Row],[ALTA_EFETIVA]]=\"\",_xlfn.DAYS(TODAY()+1,[1]!TB_BASE_NEO[[#This Row],[ADMISSÃO]]),_xlfn.DAYS([1]!TB_BASE_NEO[[#This Row],[ALTA_EFETIVA]],[1]!TB_BASE_NEO[[#This Row],[ADMISSÃO]])+1)","v":7},0,true,true,true,true,true,true]
[null,null,137569862,null,"MASCULINO","2025-01-23",null,"2025-01-23",36,3,2696,"AIG","CENTRO CIRÚRGICO",null,true,"Desconforto respiratório (Boletim de Silverman-Andersen >5)",false,false,"PRIORIDADE 1","CLÍNICO","TTRN",null,null,null,"NÃO","NÃO","NÃO",0,3.0000000000000001E-3,"NÃO","ALTA P/ ENFERMARIA","2025-01-25","2025-01-25",2614,{"$f":"IF([1]!TB_BASE_NEO[[#This Row],[ALTA_EFETIVA]]=\"\",_xlfn.DAYS(TODAY()+1,[1]!TB_BASE_NEO[[#This Row],[ADMISSÃO]]),_xlfn.DAYS([1]!TB_BASE_NEO[[#This Row],[ALTA_EFETIVA]],[1]!TB_BASE_NEO[[#This Row],[ADMISSÃO]])+1)","v":3},0,true,true,true,true,true,true]
[null,null,137764017,null,"MASCULINO","2025-01-26",null,"2025-01-25",38,4,3163,"AIG","CENTRO CIRÚRGICO",null,true,"Desconforto respiratório (Boletim de Silverman-Andersen >5)",false,false,"PRIORIDADE 1","CLÍNICO","TTRN",null,null,null,"NÃO","NÃO","NÃO",0,3.0000000000000001E-3,"NÃO","ALTA P/ ENFERMARIA","2025-01-30","2025-01-30",2880,{"$f":"IF([1]!TB_BASE_NEO[[#This Row],[ALTA_EFETIVA]]=\"\",_xlfn.DAYS(TODAY()+1,[1]!TB_BASE_NEO[[#This Row],[ADMISSÃO]]),_xlfn.DAYS([1]!TB_BASE_NEO[[#This Row],[ALTA_EFETIVA]],[1]!TB_BASE_NEO[[#This Row],[ADMISSÃO]])+1)","v":5},0,true,true,true,true,true,true]
[null,null,138170443,null,"FEMININO","2025-01-30",null,"2025-01-30",37,1,1736,"PIG","CENTRO CIRÚRGICO",null,false,"Outros",false,false,"PRIORIDADE 1","CLÍNICO","PIG",null,"SÍNDROME DE ABSTINÊNCIA","MÃE DROGADITA","NÃO","NÃO","NÃO",12,1.6E-2,"NÃO","ALTA P/ ENFERMARIA","2025-02-06","2025-02-06",1652,{"$f":"IF([1]!TB_BASE_NEO[[#This Row],[ALTA_EFETIVA]]=\"\",_xlfn.DAYS(TODAY()+1,[1]!TB_BASE_NEO[[#This Row],[ADMISSÃO]]),_xlfn.DAYS([1]!TB_BASE_NEO[[#This Row],[ALTA_EFETIVA]],[1]!TB_BASE_NEO[[#This Row],[ADMISSÃO]])+1)","v":8},0,true,true,true,true,true,true]
[null,null,138679504,null,"MASCULINO","2025-02-06",null,"2025-02-06",35,4,1980,"AIG","CENTRO CIRÚRGICO",null,true,"Desconforto respiratório (Boletim de Silverman-Andersen >5)",true,false,"PRIORIDADE 1","CLÍNICO","TTRN",null,"VARCTEL?","MULTIPLAS MAL-FORMAÇÕES A/E","NÃO","NÃO","NÃO",0,3.0000000000000001E-3,"NÃO","ÓBITO",null,"2025-02-15",2122,{"$f":"IF([1]!TB_BASE_NEO[[#This Row],[ALTA_EFETIVA]]=\"\",_xlfn.DAYS(TODAY()+1,[1]!TB_BASE_NEO[[#This Row],[ADMISSÃO]]),_xlfn.DAYS([1]!TB_BASE_NEO[[#This Row],[ALTA_EFETIVA]],[1]!TB_BASE_NEO[[#This Row],[ADMISSÃO]])+1)","v":10},0,true,true,false,false,true,false]
[null,null,139011371,null,"MASCULINO","2025-02-11",null,"2025-02-11",34,0,1996,"AIG","CENTRO CIRÚRGICO",null,true,"Infecção grave com instabilidade hemodinâmica e/ou clínica",true,false,"PRIORIDADE 1","CLÍNICO","SEPSE PRECOCE","IG LIMÍTROFE + MÃE ITU + SINTOMÁTICO",null,null,"NÃO","NÃO","NÃO",39,0.08,"NÃO","ALTA P/ ENFERMARIA","2025-02-23","2025-02-23",2162,{"$f":"IF([1]!TB_BASE_NEO[[#This Row],[ALTA_EFETIVA]]=\"\",_xlfn.DAYS(TODAY()+1,[1]!TB_BASE_NEO[[#This Row],[ADMISSÃO]]),_xlfn.DAYS([1]!TB_BASE_NEO[[#This Row],[ALTA_EFETIVA]],[1]!TB_BASE_NEO[[#This Row],[ADMISSÃO]])+1)","v":13},0,true,true,true,true,true,true]
[null,null,139170293,null,"FEMININO","2025-02-12",null,"2025-02-12",34,2,2554,"AIG","CENTRO CIRÚRGICO",null,true,"Desconforto respiratório (Boletim de Silverman-Andersen >5)",false,false,"PRIORIDADE 1","CLÍNICO","TTRN",null,null,null,"NÃO","NÃO","NÃO",0,3.0000000000000001E-3,"NÃO","ALTA P/ ENFERMARIA","2025-02-16","2025-02-16",2392,{"$f":"IF([1]!TB_BASE_NEO[[#This Row],[ALTA_EFETIVA]]=\"\",_xlfn.DAYS(TODAY()+1,[1]!TB_BASE_NEO[[#This Row],[ADMISSÃO]]),_xlfn.DAYS([1]!TB_BASE_NEO[[#This Row],[ALTA_EFETIVA]],[1]!TB_BASE_NEO[[#This Row],[ADMISSÃO]])+1)","v":5},0,true,true,true,true,true,true]
[null,null,139481914,null,"FEMININO","2025-02-16",null,"2025-02-16",27,4,1092,"AIG","CENTRO CIRÚRGICO",null,true,"Peso ao nascer <1500g e/ou idade gestacional <34 semanas",true,true,"PRIORIDADE 1","CLÍNICO","PREMATURIDADE",null,"ASFIXIA NEONATAL",null,"NÃO","NÃO","NÃO",64,0.81,"NÃO","ÓBITO <24H",null,"2025-02-17",null,{"$f":"IF([1]!TB_BASE_NEO[[#This Row],[ALTA_EFETIVA]]=\"\",_xlfn.DAYS(TODAY()+1,[1]!TB_BASE_NEO[[#This Row],[ADMISSÃO]]),_xlfn.DAYS([1]!TB_BASE_NEO[[#This Row],[ALTA_EFETIVA]],[1]!TB_BASE_NEO[[#This Row],[ADMISSÃO]])+1)","v":2},0,false,false,false,false,false,false]
[null,null,139754116,142434585,"FEMININO","2025-02-19",null,"2025-02-19",34,1,1676,"AIG","CENTRO CIRÚRGICO",null,true,"Desconforto respiratório (Boletim de Silverman-Andersen >5)",false,false,"PRIORIDADE 1","CLÍNICO","TTRN",null,null,null,"NÃO","NÃO","NÃO",0,3.0000000000000001E-3,"NÃO","MUDOU P/ UTIP",null,"2025-03-23",2408,{"$f":"IF([1]!TB_BASE_NEO[[#This Row],[ALTA_EFETIVA]]=\"\",_xlfn.DAYS(TODAY()+1,[1]!TB_BASE_NEO[[#This Row],[ADMISSÃO]]),_xlfn.DAYS([1]!TB_BASE_NEO[[#This Row],[ALTA_EFETIVA]],[1]!TB_BASE_NEO[[#This Row],[ADMISSÃO]])+1)","v":33},0,true,true,true,false,false,false]
[null,null,140064736,null,"FEMININO","2025-02-23",null,"2025-02-23",36,3,2276,"AIG","CENTRO CIRÚRGICO",null,false,"Outros",false,false,"PRIORIDADE 1","CLÍNICO","TTRN",null,null,null,"NÃO","NÃO","NÃO",0,3.0000000000000001E-3,"NÃO","ALTA P/ ENFERMARIA","2025-02-26","2025-02-26",2098,{"$f":"IF([1]!TB_BASE_NEO[[#This Row],[ALTA_EFETIVA]]=\"\",_xlfn.DAYS(TODAY()+1,[1]!TB_BASE_NEO[[#This Row],[ADMISSÃO]]),_xlfn.DAYS([1]!TB_BASE_NEO[[#This Row],[ALTA_EFETIVA]],[1]!TB_BASE_NEO[[#This Row],[ADMISSÃO]])+1)","v":4},0,true,true,true,true,true,true]
[null,null,140285119,null,"FEMININO","2025-02-25",null,"2025-02-25",33,4,2146,"AIG","CENTRO CIRÚRGICO",null,false,"Outros",false,false,"PRIORIDADE 1","CLÍNICO","TTRN",null,null,null,"NÃO","NÃO","NÃO",0,3.0000000000000001E-3,"NÃO","ALTA P/ ENFERMARIA","2025-02-28","2025-03-01",null,{"$f":"IF([1]!TB_BASE_NEO[[#This Row],[ALTA_EFETIVA]]=\"\",_xlfn.DAYS(TODAY()+1,[1]!TB_BASE_NEO[[#This Row],[ADMISSÃO]]),_xlfn.DAYS([1]!TB_BASE_NEO[[#This Row],[ALTA_EFETIVA]],[1]!TB_BASE_NEO[[#This Row],[ADMISSÃO]])+1)","v":5},1,true,true,true,true,true,true]
[null,null,140323236,null,"MASCULINO","2025-02-26",null,"2025-02-26",27,2,780,"AIG","CENTRO CIRÚRGICO",null,true,"Peso ao nascer <1500g e/ou idade gestacional <34 semanas",true,true,"PRIORIDADE 1","CLÍNICO","PREMATURIDADE","PREMATURO EXTREMEMO + SEPSE","ASFIXIA NEONATAL",null,"NÃO","NÃO","NÃO",33,9.6000000000000002E-2,"NÃO","ÓBITO",null,"2025-03-10",780,{"$f":"IF([1]!TB_BASE_NEO[[#This Row],[ALTA_EFETIVA]]=\"\",_xlfn.DAYS(TODAY()+1,[1]!TB_BASE_NEO[[#This Row],[ADMISSÃO]]),_xlfn.DAYS([1]!TB_BASE_NEO[[#This Row],[ALTA_EFETIVA]],[1]!TB_BASE_NEO[[#This Row],[ADMISSÃO]])+1)","v":13},0,false,false,false,false,true,false]
[null,null,140437321,null,"FEMININO","2025-02-27",null,"2025-02-27",38,1,2388,"AIG","CENTRO CIRÚRGICO",null,true,"Distúrbio metabólico",false,false,"PRIORIDADE 1","CLÍNICO","HIPOGLICEMIA","HIPOGLICEMIA 1ªHDV REFRATÁRIA À CORREÇÃO ORAL","PIG",null,"SIM","NÃO","NÃO",0,3.0000000000000001E-3,"NÃO","ALTA P/ ENFERMARIA","2025-02-28","2025-02-28",2284,{"$f":"IF([1]!TB_BASE_NEO[[#This Row],[ALTA_EFETIVA]]=\"\",_xlfn.DAYS(TODAY()+1,[1]!TB_BASE_NEO[[#This Row],[ADMISSÃO]]),_xlfn.DAYS([1]!TB_BASE_NEO[[#This Row],[ALTA_EFETIVA]],[1]!TB_BASE_NEO[[#This Row],[ADMISSÃO]])+1)","v":2},0,true,true,true,true,true,true]
[null,null,140506433,null,"MASCULINO","2025-02-28",null,"2025-02-28",39,3,3780,"GIG","CENTRO CIRÚRGICO",null,true,"Desconforto respiratório (Boletim de Silverman-Andersen >5)",false,false,"PRIORIDADE 1","CLÍNICO","SEPSE PRECOCE",null,null,null,"NÃO","NÃO","NÃO",0,3.0000000000000001E-3,"NÃO","ALTA P/ ENFERMARIA","2025-03-04","2025-03-04",3432,{"$f":"IF([1]!TB_BASE_NEO[[#This Row],[ALTA_EFETIVA]]=\"\",_xlfn.DAYS(TODAY()+1,[1]!TB_BASE_NEO[[#This Row],[ADMISSÃO]]),_xlfn.DAYS([1]!TB_BASE_NEO[[#This Row],[ALTA_EFETIVA]],[1]!TB_BASE_NEO[[#This Row],[ADMISSÃO]])+1)","v":5},0,true,true,true,true,true,true]
[null,null,140666357,null,"FEMININO","2025-03-02",null,"2025-03-02",36,3,2474,"AIG","CENTRO CIRÚRGICO",null,true,"Desconforto respiratório (Boletim de Silverman-Andersen >5)",true,false,"PRIORIDADE 1","CLÍNICO","TTRN",null,"PIG",null,"NÃO","NÃO","NÃO",0,3.0000000000000001E-3,"NÃO","ALTA P/ ENFERMARIA","2025-03-04","2025-03-04",2306,{"$f":"IF([1]!TB_BASE_NEO[[#This Row],[ALTA_EFETIVA]]=\"\",_xlfn.DAYS(TODAY()+1,[1]!TB_BASE_NEO[[#This Row],[ADMISSÃO]]),_xlfn.DAYS([1]!TB_BASE_NEO[[#This Row],[ALTA_EFETIVA]],[1]!TB_BASE_NEO[[#This Row],[ADMISSÃO]])+1)","v":3},{"$f":"IF(OR(AF66=0,AG66=0),0,_xlfn.DAYS(AG66,AF66))","v":0},true,true,true,true,true,true]
[null,null,140770977,null,"MASCULINO","2025-03-04",null,"2025-03-04",35,5,1960,"AIG","CENTRO CIRÚRGICO",null,true,"Desconforto respiratório (Boletim de Silverman-Andersen >5)",false,false,"PRIORIDADE 1","CLÍNICO","TTRN",null,null,null,"SIM","NÃO","NÃO",0,3.0000000000000001E-3,"NÃO","ALTA P/ ENFERMARIA","2025-03-05","2025-03-05",1918,{"$f":"IF([1]!TB_BASE_NEO[[#This Row],[ALTA_EFETIVA]]=\"\",_xlfn.DAYS(TODAY()+1,[1]!TB_BASE_NEO[[#This Row],[ADMISSÃO]]),_xlfn.DAYS([1]!TB_BASE_NEO[[#This Row],[ALTA_EFETIVA]],[1]!TB_BASE_NEO[[#This Row],[ADMISSÃO]])+1)","v":2},0,true,true,true,true,true,true]
[null,null,140888894,null,"MASCULINO","2025-03-06",null,"2025-03-06",38,1,3050,"AIG","CENTRO CIRÚRGICO",null,true,"Desconforto respiratório (Boletim de Silverman-Andersen >5)",false,false,"PRIORIDADE 1","CLÍNICO","TTRN",null,null,null,"NÃO","NÃO","NÃO",0,3.0000000000000001E-3,"NÃO","ALTA P/ ENFERMARIA","2025-03-07","2025-03-07",1984,{"$f":"IF([1]!TB_BASE_NEO[[#This Row],[ALTA_EFETIVA]]=\"\",_xlfn.DAYS(TODAY()+1,[1]!TB_BASE_NEO[[#This Row],[ADMISSÃO]]),_xlfn.DAYS([1]!TB_BASE_NEO[[#This Row],[ALTA_EFETIVA]],[1]!TB_BASE_NEO[[#This Row],[ADMISSÃO]])+1)","v":2},0,true,true,true,true,true,true]
[null,null,141665170,null,"MASCULINO","2025-03-14",null,"2025-03-14",33,6,1542,"PIG","CENTRO CIRÚRGICO",null,false,"Outros",false,false,"PRIORIDADE 1","CLÍNICO","TTRN",null,null,null,"NÃO","NÃO","NÃO",2.2000000000000002,0.16,"NÃO","ALTA P/ ENFERMARIA","2025-03-24","2025-03-24",1680,{"$f":"IF([1]!TB_BASE_NEO[[#This Row],[ALTA_EFETIVA]]=\"\",_xlfn.DAYS(TODAY()+1,[1]!TB_BASE_NEO[[#This Row],[ADMISSÃO]]),_xlfn.DAYS([1]!TB_BASE_NEO[[#This Row],[ALTA_EFETIVA]],[1]!TB_BASE_NEO[[#This Row],[ADMISSÃO]])+1)","v":11},0,true,true,true,true,true,true]
[null,null,141758655,null,"FEMININO","2025-03-15",null,"2025-03-13",38,3,3290,"AIG","ENFERMARIA",null,true,"Icterícia que necessite de exsanguineotransfusão",false,false,"PRIORIDADE 1","CLÍNICO","ICTERÍCIA NEO","C/ NÍVEL DE EST",null,null,"NÃO","SIM","NÃO",1.3,0.16,"NÃO","ALTA P/ ENFERMARIA","2025-03-18","2025-03-19",2956,{"$f":"IF([1]!TB_BASE_NEO[[#This Row],[ALTA_EFETIVA]]=\"\",_xlfn.DAYS(TODAY()+1,[1]!TB_BASE_NEO[[#This Row],[ADMISSÃO]]),_xlfn.DAYS([1]!TB_BASE_NEO[[#This Row],[ALTA_EFETIVA]],[1]!TB_BASE_NEO[[#This Row],[ADMISSÃO]])+1)","v":5},1,true,true,true,true,true,true]
[null,null,142330805,null,"MASCULINO","2025-03-21",null,"2025-03-21",33,6,2114,"AIG","CENTRO CIRÚRGICO",null,false,"Outros",false,false,"PRIORIDADE 1","CLÍNICO","TTRN","BSA=5",null,null,"NÃO","NÃO","NÃO",0,3.0000000000000001E-3,"NÃO","EVASÃO","2025-03-28","2025-03-28",1940,{"$f":"IF([1]!TB_BASE_NEO[[#This Row],[ALTA_EFETIVA]]=\"\",_xlfn.DAYS(TODAY()+1,[1]!TB_BASE_NEO[[#This Row],[ADMISSÃO]]),_xlfn.DAYS([1]!TB_BASE_NEO[[#This Row],[ALTA_EFETIVA]],[1]!TB_BASE_NEO[[#This Row],[ADMISSÃO]])+1)","v":8},0,true,true,true,true,true,true]
[null,null,142712519,null,"MASCULINO","2025-03-26",null,"2025-03-26",37,6,3276,"AIG","CENTRO CIRÚRGICO",null,true,"Desconforto respiratório (Boletim de Silverman-Andersen >5)",false,false,"PRIORIDADE 1","CLÍNICO","TTRN","BSA=6",null,null,"NÃO","NÃO","NÃO",0,3.0000000000000001E-3,"NÃO","ALTA P/ ENFERMARIA","2025-03-27","2025-03-27",3276,{"$f":"IF([1]!TB_BASE_NEO[[#This Row],[ALTA_EFETIVA]]=\"\",_xlfn.DAYS(TODAY()+1,[1]!TB_BASE_NEO[[#This Row],[ADMISSÃO]]),_xlfn.DAYS([1]!TB_BASE_NEO[[#This Row],[ALTA_EFETIVA]],[1]!TB_BASE_NEO[[#This Row],[ADMISSÃO]])+1)","v":2},0,true,true,true,true,true,true]
[null,null,143876001,null,"FEMININO","2025-04-08",null,"2025-04-08",32,0,1590,"AIG","CENTRO CIRÚRGICO",null,false,"Outros",false,false,"PRIORIDADE 2","CLÍNICO","PREMATURIDADE",null,null,null,"NÃO","NÃO","NÃO",1.3,0.16,null,"ALTA P/ ENFERMARIA","2025-04-25","2025-04-25",1784,{"$f":"IF([1]!TB_BASE_NEO[[#This Row],[ALTA_EFETIVA]]=\"\",_xlfn.DAYS(TODAY()+1,[1]!TB_BASE_NEO[[#This Row],[ADMISSÃO]]),_xlfn.DAYS([1]!TB_BASE_NEO[[#This Row],[ALTA_EFETIVA]],[1]!TB_BASE_NEO[[#This Row],[ADMISSÃO]])+1)","v":18},0,true,true,true,true,true,true]
[null,null,144193252,null,"MASCULINO","2025-04-11",null,"2025-03-19",36,0,4000,"AIG","PRONTO ATENDIMENTO",null,false,"Outros",false,true,"PRIORIDADE 1","CLÍNICO","BRONQUIOLITE",null,null,null,"NÃO","SIM","NÃO","***","***",null,"ALTA P/ ENFERMARIA","2025-04-18","2025-04-18",3624,{"$f":"IF([1]!TB_BASE_NEO[[#This Row],[ALTA_EFETIVA]]=\"\",_xlfn.DAYS(TODAY()+1,[1]!TB_BASE_NEO[[#This Row],[ADMISSÃO]]),_xlfn.DAYS([1]!TB_BASE_NEO[[#This Row],[ALTA_EFETIVA]],[1]!TB_BASE_NEO[[#This Row],[ADMISSÃO]])+1)","v":8},0,true,true,true,true,true,true]
[null,null,144223307,null,"FEMININO","2025-04-11",null,"2025-04-11",30,5,936,"PIG","CENTRO CIRÚRGICO",null,true,"Peso ao nascer <1500g e/ou idade gestacional <34 semanas",false,false,"PRIORIDADE 1","CLÍNICO","PREMATURIDADE","PREMATURO EXTREMEMO + SEPSE",null,null,"NÃO","NÃO","NÃO",42,0.157,null,"ÓBITO",null,"2025-05-19",1176,{"$f":"IF([1]!TB_BASE_NEO[[#This Row],[ALTA_EFETIVA]]=\"\",_xlfn.DAYS(TODAY()+1,[1]!TB_BASE_NEO[[#This Row],[ADMISSÃO]]),_xlfn.DAYS([1]!TB_BASE_NEO[[#This Row],[ALTA_EFETIVA]],[1]!TB_BASE_NEO[[#This Row],[ADMISSÃO]])+1)","v":39},0,false,false,false,false,false,false]
[null,null,144279217,null,"FEMININO","2025-04-13",null,"2025-03-29",36,3,3200,"AIG","PRONTO ATENDIMENTO",null,false,"Outros",false,false,"PRIORIDADE 2","CLÍNICO","BRONQUIOLITE",null,null,null,"NÃO","SIM","NÃO","***","***","NÃO","ALTA P/ ENFERMARIA","2025-04-14","2025-04-14",3.2,{"$f":"IF([1]!TB_BASE_NEO[[#This Row],[ALTA_EFETIVA]]=\"\",_xlfn.DAYS(TODAY()+1,[1]!TB_BASE_NEO[[#This Row],[ADMISSÃO]]),_xlfn.DAYS([1]!TB_BASE_NEO[[#This Row],[ALTA_EFETIVA]],[1]!TB_BASE_NEO[[#This Row],[ADMISSÃO]])+1)","v":2},0,true,true,true,true,true,true]
[null,null,144547333,null,"FEMININO","2025-04-16",null,"2025-04-15",36,3,2272,"AIG","CENTRO CIRÚRGICO",null,false,"Outros",false,false,"PRIORIDADE 2","CLÍNICO","TTRN","PREMATURO TARDIO",null,null,"NÃO","NÃO","NÃO",0,3.0000000000000001E-3,"NÃO","ALTA P/ ENFERMARIA","2025-04-18","2025-04-18",2204,{"$f":"IF([1]!TB_BASE_NEO[[#This Row],[ALTA_EFETIVA]]=\"\",_xlfn.DAYS(TODAY()+1,[1]!TB_BASE_NEO[[#This Row],[ADMISSÃO]]),_xlfn.DAYS([1]!TB_BASE_NEO[[#This Row],[ALTA_EFETIVA]],[1]!TB_BASE_NEO[[#This Row],[ADMISSÃO]])+1)","v":3},0,true,true,true,true,true,true]
[null,null,145759517,null,"FEMININO","2025-05-01",null,"2025-05-01",34,0,3426,"GIG","CENTRO CIRÚRGICO",null,true,"Desconforto respiratório (Boletim de Silverman-Andersen >5)",false,false,"PRIORIDADE 2","CLÍNICO","TTRN",null,null,null,"NÃO","NÃO","NÃO",1.3,0.16,"NÃO","ALTA P/ ENFERMARIA","2025-05-05","2025-05-05",2942,{"$f":"IF([1]!TB_BASE_NEO[[#This Row],[ALTA_EFETIVA]]=\"\",_xlfn.DAYS(TODAY()+1,[1]!TB_BASE_NEO[[#This Row],[ADMISSÃO]]),_xlfn.DAYS([1]!TB_BASE_NEO[[#This Row],[ALTA_EFETIVA]],[1]!TB_BASE_NEO[[#This Row],[ADMISSÃO]])+1)","v":5},0,true,true,true,true,true,true]
[null,null,146776777,null,"FEMININO","2025-05-13",null,"2025-05-12",37,5,1930,"PIG","CENTRO CIRÚRGICO",null,false,"Outros",false,false,"PRIORIDADE 2","CLÍNICO","HIPOGLICEMIA",null,"PIG",null,"NÃO","SIM","NÃO","***","***","NÃO","ALTA P/ ENFERMARIA","2025-05-14","2025-05-14",1842,{"$f":"IF([1]!TB_BASE_NEO[[#This Row],[ALTA_EFETIVA]]=\"\",_xlfn.DAYS(TODAY()+1,[1]!TB_BASE_NEO[[#This Row],[ADMISSÃO]]),_xlfn.DAYS([1]!TB_BASE_NEO[[#This Row],[ALTA_EFETIVA]],[1]!TB_BASE_NEO[[#This Row],[ADMISSÃO]])+1)","v":2},0,true,true,true,true,true,true]
[null,null,146776777,null,"FEMININO","2025-05-13",null,"2025-05-12",37,5,1930,"PIG","CENTRO CIRÚRGICO",null,false,"Outros",false,false,"PRIORIDADE 2","CLÍNICO","HIPOGLICEMIA",null,"PIG",null,"NÃO","SIM","NÃO","***","***","SIM","ALTA P/ ENFERMARIA","2025-05-20","2025-05-21",1884,{"$f":"IF([1]!TB_BASE_NEO[[#This Row],[ALTA_EFETIVA]]=\"\",_xlfn.DAYS(TODAY()+1,[1]!TB_BASE_NEO[[#This Row],[ADMISSÃO]]),_xlfn.DAYS([1]!TB_BASE_NEO[[#This Row],[ALTA_EFETIVA]],[1]!TB_BASE_NEO[[#This Row],[ADMISSÃO]])+1)","v":9},1,true,true,true,true,true,true]
[null,null,147443984,null,"FEMININO","2025-05-20",null,"2025-05-20",33,6,1685,"AIG","CENTRO CIRÚRGICO",null,true,"Peso ao nascer <1500g e/ou idade gestacional <34 semanas",false,false,"PRIORIDADE 2","CLÍNICO","PREMATURIDADE",null,null,null,"NÃO","NÃO","NÃO",1.3,0.16,"NÃO","ALTA P/ ENFERMARIA","2025-05-26","2025-05-27",1620,{"$f":"IF([1]!TB_BASE_NEO[[#This Row],[ALTA_EFETIVA]]=\"\",_xlfn.DAYS(TODAY()+1,[1]!TB_BASE_NEO[[#This Row],[ADMISSÃO]]),_xlfn.DAYS([1]!TB_BASE_NEO[[#This Row],[ALTA_EFETIVA]],[1]!TB_BASE_NEO[[#This Row],[ADMISSÃO]])+1)","v":8},1,true,true,true,true,true,true]
[null,null,147444946,null,"FEMININO","2025-05-20",null,"2025-05-20",33,5,1932,"AIG","CENTRO CIRÚRGICO",null,true,"Peso ao nascer <1500g e/ou idade gestacional <34 semanas",true,false,"PRIORIDADE 1","CLÍNICO","PREMATURIDADE",null,"TTRN",null,"NÃO","NÃO","NÃO",1.3,0.16,"NÃO","ALTA P/ ENFERMARIA","2025-05-25","2025-05-26",1644,{"$f":"IF([1]!TB_BASE_NEO[[#This Row],[ALTA_EFETIVA]]=\"\",_xlfn.DAYS(TODAY()+1,[1]!TB_BASE_NEO[[#This Row],[ADMISSÃO]]),_xlfn.DAYS([1]!TB_BASE_NEO[[#This Row],[ALTA_EFETIVA]],[1]!TB_BASE_NEO[[#This Row],[ADMISSÃO]])+1)","v":7},1,true,true,true,true,true,true]
[null,null,147927090,null,"FEMININO","2025-05-24",null,"2025-05-24",37,5,3176,"AIG","CENTRO CIRÚRGICO",null,true,"Infecção grave com instabilidade hemodinâmica e/ou clínica",true,false,"PRIORIDADE 1","CLÍNICO","SEPSE PRECOCE",null,null,null,"NÃO","NÃO","NÃO",6.5,0.34,"NÃO","ALTA P/ ENFERMARIA","2025-05-28","2025-05-28",2814,{"$f":"IF([1]!TB_BASE_NEO[[#This Row],[ALTA_EFETIVA]]=\"\",_xlfn.DAYS(TODAY()+1,[1]!TB_BASE_NEO[[#This Row],[ADMISSÃO]]),_xlfn.DAYS([1]!TB_BASE_NEO[[#This Row],[ALTA_EFETIVA]],[1]!TB_BASE_NEO[[#This Row],[ADMISSÃO]])+1)","v":5},0,true,true,true,true,true,true]
[null,null,148930660,null,"MASCULINO","2025-06-05",null,"2025-06-05",32,5,1758,"AIG","CENTRO CIRÚRGICO",null,true,"Peso ao nascer <1500g e/ou idade gestacional <34 semanas",false,false,"PRIORIDADE 1","CLÍNICO","PREMATURIDADE",null,null,null,"NÃO","NÃO","NÃO",4.9000000000000004,0.28000000000000003,"NÃO","ALTA P/ ENFERMARIA","2025-06-18","2025-06-19",1798,{"$f":"IF([1]!TB_BASE_NEO[[#This Row],[ALTA_EFETIVA]]=\"\",_xlfn.DAYS(TODAY()+1,[1]!TB_BASE_NEO[[#This Row],[ADMISSÃO]]),_xlfn.DAYS([1]!TB_BASE_NEO[[#This Row],[ALTA_EFETIVA]],[1]!TB_BASE_NEO[[#This Row],[ADMISSÃO]])+1)","v":15},1,true,true,true,true,true,true]
[null,null,150050599,null,"MASCULINO","2025-06-16",null,"2025-05-28","***","***",4200,"AIG","PRONTO ATENDIMENTO","CESÁREA",false,"Outros",false,false,"PRIORIDADE 2","CLÍNICO","SEPSE TARDIA","RN VINDO DE CASA. Ñ NASCEU NO GUARÁS. PN 3,3 KG",null,null,"NÃO","SIM","NÃO","***","***","NÃO","ALTA P/ ENFERMARIA","2025-06-19","2025-06-20",4200,{"$f":"IF([1]!TB_BASE_NEO[[#This Row],[ALTA_EFETIVA]]=\"\",_xlfn.DAYS(TODAY()+1,[1]!TB_BASE_NEO[[#This Row],[ADMISSÃO]]),_xlfn.DAYS([1]!TB_BASE_NEO[[#This Row],[ALTA_EFETIVA]],[1]!TB_BASE_NEO[[#This Row],[ADMISSÃO]])+1)","v":5},1,true,true,true,true,true,true]
[null,null,150128176,null,"MASCULINO","2025-06-17",null,"2025-06-17",34,0,1848,"AIG","CENTRO CIRÚRGICO",null,true,"Desconforto respiratório (Boletim de Silverman-Andersen >5)",false,false,"PRIORIDADE 1","CLÍNICO","SEPSE PRECOCE",null,null,null,"NÃO","NÃO","NÃO",1.3,0.16,"NÃO","ALTA P/ ENFERMARIA","2025-06-25","2025-06-26",1738,{"$f":"IF([1]!TB_BASE_NEO[[#This Row],[ALTA_EFETIVA]]=\"\",_xlfn.DAYS(TODAY()+1,[1]!TB_BASE_NEO[[#This Row],[ADMISSÃO]]),_xlfn.DAYS([1]!TB_BASE_NEO[[#This Row],[ALTA_EFETIVA]],[1]!TB_BASE_NEO[[#This Row],[ADMISSÃO]])+1)","v":10},1,true,true,true,true,true,true]
[null,null,150677892,null,"FEMININO","2025-06-25",null,"2025-06-25",38,4,3200,"AIG","CENTRO CIRÚRGICO",null,false,"Outros",false,false,"PRIORIDADE 2","CLÍNICO","TTRN",null,null,null,"NÃO","NÃO","NÃO",1.3,0.16,"NÃO","ALTA P/ ENFERMARIA","2025-06-27","2025-06-27",3072,{"$f":"IF([1]!TB_BASE_NEO[[#This Row],[ALTA_EFETIVA]]=\"\",_xlfn.DAYS(TODAY()+1,[1]!TB_BASE_NEO[[#This Row],[ADMISSÃO]]),_xlfn.DAYS([1]!TB_BASE_NEO[[#This Row],[ALTA_EFETIVA]],[1]!TB_BASE_NEO[[#This Row],[ADMISSÃO]])+1)","v":3},0,true,true,true,true,true,true]
[null,null,151182107,null,"FEMININO","2025-07-01",null,"2025-07-01",33,1,3892,"GIG","CENTRO CIRÚRGICO",null,true,"Peso ao nascer <1500g e/ou idade gestacional <34 semanas",false,false,"PRIORIDADE 1","CLÍNICO","PREMATURIDADE",null,null,null,"NÃO","NÃO","NÃO",0,3.0000000000000001E-3,"NÃO","ALTA P/ ENFERMARIA","2025-07-09","2025-07-10",3158,{"$f":"IF([1]!TB_BASE_NEO[[#This Row],[ALTA_EFETIVA]]=\"\",_xlfn.DAYS(TODAY()+1,[1]!TB_BASE_NEO[[#This Row],[ADMISSÃO]]),_xlfn.DAYS([1]!TB_BASE_NEO[[#This Row],[ALTA_EFETIVA]],[1]!TB_BASE_NEO[[#This Row],[ADMISSÃO]])+1)","v":10},1,true,true,true,true,true,true]
[null,null,151675908,null,"MASCULINO","2025-07-08",null,"2025-07-08",32,3,1650,"AIG","CENTRO CIRÚRGICO",null,true,"Peso ao nascer <1500g e/ou idade gestacional <34 semanas",false,true,"PRIORIDADE 1","CLÍNICO","PREMATURIDADE",null,null,null,"NÃO","NÃO","NÃO",0,3.0000000000000001E-3,"NÃO","ALTA P/ ENFERMARIA","2025-07-23","2025-07-23",1850,{"$f":"IF([1]!TB_BASE_NEO[[#This Row],[ALTA_EFETIVA]]=\"\",_xlfn.DAYS(TODAY()+1,[1]!TB_BASE_NEO[[#This Row],[ADMISSÃO]]),_xlfn.DAYS([1]!TB_BASE_NEO[[#This Row],[ALTA_EFETIVA]],[1]!TB_BASE_NEO[[#This Row],[ADMISSÃO]])+1)","v":16},0,true,true,true,true,true,true]
[null,null,152375156,null,"FEMININO","2025-07-16","23:55:00","2025-07-16",31,1,974,"PIG","CENTRO CIRÚRGICO",null,true,"Necessidade de suporte ventilatório",true,true,"PRIORIDADE 1","CLÍNICO","PREMATURIDADE",null,"ASFIXIA NEONATAL",null,"NÃO","NÃO","NÃO",87,0.64400000000000002,"NÃO","ÓBITO",null,"2025-07-19",974,{"$f":"IF([1]!TB_BASE_NEO[[#This Row],[ALTA_EFETIVA]]=\"\",_xlfn.DAYS(TODAY()+1,[1]!TB_BASE_NEO[[#This Row],[ADMISSÃO]]),_xlfn.DAYS([1]!TB_BASE_NEO[[#This Row],[ALTA_EFETIVA]],[1]!TB_BASE_NEO[[#This Row],[ADMISSÃO]])+1)","v":4},0,false,false,false,false,false,false]
[null,null,152487001,null,"MASCULINO","2025-07-18","15:55:00","2025-07-17",37,1,2444,"AIG","CENTRO CIRÚRGICO",null,true,"Necessidade de suporte ventilatório",false,false,"PRIORIDADE 1","CLÍNICO","TTRN",null,null,null,"NÃO","NÃO","NÃO",0.3,0,"NÃO","ALTA P/ ENFERMARIA","2025-07-21","2025-07-21",2232,{"$f":"IF([1]!TB_BASE_NEO[[#This Row],[ALTA_EFETIVA]]=\"\",_xlfn.DAYS(TODAY()+1,[1]!TB_BASE_NEO[[#This Row],[ADMISSÃO]]),_xlfn.DAYS([1]!TB_BASE_NEO[[#This Row],[ALTA_EFETIVA]],[1]!TB_BASE_NEO[[#This Row],[ADMISSÃO]])+1)","v":4},0,true,true,true,true,true,true]
[null,null,152650490,null,"MASCULINO","2025-07-19","23:32:00","2025-07-19",30,2,1284,"AIG","CENTRO CIRÚRGICO","CESÁREA",true,"Peso ao nascer <1500g e/ou idade gestacional <34 semanas",true,true,"PRIORIDADE 1","CLÍNICO","PREMATURIDADE",null,null,null,"NÃO","NÃO","NÃO",22.6,0.56000000000000005,"NÃO",null,null,null,null,{"$f":"IF([1]!TB_BASE_NEO[[#This Row],[ALTA_EFETIVA]]=\"\",_xlfn.DAYS(TODAY()+1,[1]!TB_BASE_NEO[[#This Row],[ADMISSÃO]]),_xlfn.DAYS([1]!TB_BASE_NEO[[#This Row],[ALTA_EFETIVA]],[1]!TB_BASE_NEO[[#This Row],[ADMISSÃO]])+1)","v":31},0,false,false,false,false,false,false]
[null,null,153056892,null,"FEMININO","2025-07-23","15:15:00","2025-07-23",37,0,3510,"AIG","CENTRO CIRÚRGICO","CESÁREA",false,"Outros",false,false,"PRIORIDADE 2","CLÍNICO","TTRN",null,null,null,"NÃO","NÃO","NÃO",0.3,0,"NÃO","ALTA P/ ENFERMARIA","2025-07-25","2025-07-25",3157,{"$f":"IF([1]!TB_BASE_NEO[[#This Row],[ALTA_EFETIVA]]=\"\",_xlfn.DAYS(TODAY()+1,[1]!TB_BASE_NEO[[#This Row],[ADMISSÃO]]),_xlfn.DAYS([1]!TB_BASE_NEO[[#This Row],[ALTA_EFETIVA]],[1]!TB_BASE_NEO[[#This Row],[ADMISSÃO]])+1)","v":3},0,true,true,true,true,true,true]
[null,null,153483738,null,"FEMININO","2025-07-30","13:17:00","2025-07-30",39,2,3250,"AIG","CENTRO CIRÚRGICO","CESÁREA",true,"Anóxia neonatal grave (APGAR 5 min <5)",true,false,"PRIORIDADE 2","CLÍNICO","ASFIXIA NEO","NASCEU EM MORTE APARENTE",null,null,"NÃO","NÃO","NÃO",1.3,0.18,"NÃO","ALTA P/ ENFERMARIA","2025-08-01","2025-08-01",3072,{"$f":"IF([1]!TB_BASE_NEO[[#This Row],[ALTA_EFETIVA]]=\"\",_xlfn.DAYS(TODAY()+1,[1]!TB_BASE_NEO[[#This Row],[ADMISSÃO]]),_xlfn.DAYS([1]!TB_BASE_NEO[[#This Row],[ALTA_EFETIVA]],[1]!TB_BASE_NEO[[#This Row],[ADMISSÃO]])+1)","v":3},0,true,true,true,true,true,true]
[null,null,153610294,null,"FEMININO","2025-08-02","14:45:00","2025-08-01",37,6,3300,"AIG","ENFERMARIA","CESÁREA",false,"Outros",false,false,"PRIORIDADE 2","CLÍNICO","CIANOSE A/E","NASCEU BEM E FOI PRO ALCON",null,null,"SIM","NÃO","NÃO",0.3,0,"NÃO","ALTA P/ ENFERMARIA","2025-08-03","2025-08-03",3124,{"$f":"IF([1]!TB_BASE_NEO[[#This Row],[ALTA_EFETIVA]]=\"\",_xlfn.DAYS(TODAY()+1,[1]!TB_BASE_NEO[[#This Row],[ADMISSÃO]]),_xlfn.DAYS([1]!TB_BASE_NEO[[#This Row],[ALTA_EFETIVA]],[1]!TB_BASE_NEO[[#This Row],[ADMISSÃO]])+1)","v":2},0,true,true,true,true,true,true]
[null,null,153838181,null,"MASCULINO","2025-08-04","16:50:00","2025-08-04",38,1,3338,"AIG","CENTRO CIRÚRGICO","CESÁREA",false,"Outros",false,false,"PRIORIDADE 2","CLÍNICO","DESCONFORTO RESPIRATÓRIO N/E",null,null,null,"SIM","NÃO","NÃO",0.3,0,"NÃO","ALTA P/ ENFERMARIA","2025-08-05","2025-08-05",3212,{"$f":"IF([1]!TB_BASE_NEO[[#This Row],[ALTA_EFETIVA]]=\"\",_xlfn.DAYS(TODAY()+1,[1]!TB_BASE_NEO[[#This Row],[ADMISSÃO]]),_xlfn.DAYS([1]!TB_BASE_NEO[[#This Row],[ALTA_EFETIVA]],[1]!TB_BASE_NEO[[#This Row],[ADMISSÃO]])+1)","v":2},0,true,true,true,true,true,true]
[null,null,154044288,null,"MASCULINO","2025-08-06","13:20:00","2025-08-06",35,0,2890,"AIG","PRÉ-PARTO","VAGINAL",false,"Outros",false,false,"PRIORIDADE 2","CLÍNICO","TTRN",null,null,null,"SIM","NÃO","NÃO",0.5,0,"NÃO","ALTA P/ ENFERMARIA","2025-08-07","2025-08-07",2890,{"$f":"IF([1]!TB_BASE_NEO[[#This Row],[ALTA_EFETIVA]]=\"\",_xlfn.DAYS(TODAY()+1,[1]!TB_BASE_NEO[[#This Row],[ADMISSÃO]]),_xlfn.DAYS([1]!TB_BASE_NEO[[#This Row],[ALTA_EFETIVA]],[1]!TB_BASE_NEO[[#This Row],[ADMISSÃO]])+1)","v":2},0,true,true,true,true,true,true]
[null,null,154820854,null,"FEMININO","2025-08-15","18:00:00","2025-08-15",32,4,2400,"GIG","CENTRO CIRÚRGICO","CESÁREA",true,"Desconforto respiratório (Boletim de Silverman-Andersen >5)",false,true,"PRIORIDADE 1","CLÍNICO","DMH",null,null,null,"NÃO","NÃO","NÃO",1.3,0.18,null,null,null,null,null,{"$f":"IF([1]!TB_BASE_NEO[[#This Row],[ALTA_EFETIVA]]=\"\",_xlfn.DAYS(TODAY()+1,[1]!TB_BASE_NEO[[#This Row],[ADMISSÃO]]),_xlfn.DAYS([1]!TB_BASE_NEO[[#This Row],[ALTA_EFETIVA]],[1]!TB_BASE_NEO[[#This Row],[ADMISSÃO]])+1)","v":4},0,false,false,false,false,false,false]

{"sheet":"CONSOLIDADO","index":1,"n_rows":27,"n_cols":15,"rows_kept":27,"cut":false,"hidden":false,"merged":[[0,1,0,13]]}
[null,"ESTATÍSTICAS CONSOLIDADAS -- UTI NEONATAL",null,null,null,null,null,null,null,null,null,null,null,null,"ANO BASE:"]
[null,1,2,3,4,5,6,7,8,9,10,11,12,null,2024]
[null,"JAN","FEV","MAR","ABR","MAI","JUN","JUL","AGO","SET","OUT","NOV","DEZ","TOTAL"]
["DADOS VÁLIDOS",{"$f":"IF(TODAY()>=DATE($O$2, 1, 1),TRUE,FALSE)","v":true},{"$f":"IF(TODAY()>=DATE($O$2, 2, 1),TRUE,FALSE)","v":true},{"$f":"IF(TODAY()>=DATE($O$2, 3, 1),TRUE,FALSE)","v":true},{"$f":"IF(TODAY()>=DATE($O$2, 4, 1),TRUE,FALSE)","v":true},{"$f":"IF(TODAY()>=DATE($O$2, 5, 1),TRUE,FALSE)","v":true},{"$f":"IF(TODAY()>=DATE($O$2, 6, 1),TRUE,FALSE)","v":true},{"$f":"IF(TODAY()>=DATE($O$2, 7, 1),TRUE,FALSE)","v":true},{"$f":"IF(TODAY()>=DATE($O$2, 8, 1),TRUE,FALSE)","v":true},{"$f":"IF(TODAY()>=DATE($O$2, 9, 1),TRUE,FALSE)","v":true},{"$f":"IF(TODAY()>=DATE($O$2, 10, 1),TRUE,FALSE)","v":true},{"$f":"IF(TODAY()>=DATE($O$2, 11, 1),TRUE,FALSE)","v":true},{"$f":"IF(TODAY()>=DATE($O$2, 12, 1),TRUE,FALSE)","v":true}]
["Novas internações",{"$f":"IF(B$4=TRUE, COUNTIFS(TB_BASE_NEO[ADMISSÃO], \">=\"&DATE($O$2,B$2,1), TB_BASE_NEO[ADMISSÃO], \"<=\"&EOMONTH(DATE($O$2,B$2,1),0)), \"\")","v":0},{"$f":"IF(C$4=TRUE, COUNTIFS(TB_BASE_NEO[ADMISSÃO], \">=\"&DATE($O$2,C$2,1), TB_BASE_NEO[ADMISSÃO], \"<=\"&EOMONTH(DATE($O$2,C$2,1),0)), \"\")","v":1},{"$f":"IF(D$4=TRUE, COUNTIFS(TB_BASE_NEO[ADMISSÃO], \">=\"&DATE($O$2,D$2,1), TB_BASE_NEO[ADMISSÃO], \"<=\"&EOMONTH(DATE($O$2,D$2,1),0)), \"\")","v":0},{"$f":"IF(E$4=TRUE, COUNTIFS(TB_BASE_NEO[ADMISSÃO], \">=\"&DATE($O$2,E$2,1), TB_BASE_NEO[ADMISSÃO], \"<=\"&EOMONTH(DATE($O$2,E$2,1),0)), \"\")","v":1},{"$f":"IF(F$4=TRUE, COUNTIFS(TB_BASE_NEO[ADMISSÃO], \">=\"&DATE($O$2,F$2,1), TB_BASE_NEO[ADMISSÃO], \"<=\"&EOMONTH(DATE($O$2,F$2,1),0)), \"\")","v":5},{"$f":"IF(G$4=TRUE, COUNTIFS(TB_BASE_NEO[ADMISSÃO], \">=\"&DATE($O$2,G$2,1), TB_BASE_NEO[ADMISSÃO], \"<=\"&EOMONTH(DATE($O$2,G$2,1),0)), \"\")","v":8},{"$f":"IF(H$4=TRUE, COUNTIFS(TB_BASE_NEO[ADMISSÃO], \">=\"&DATE($O$2,H$2,1), TB_BASE_NEO[ADMISSÃO], \"<=\"&EOMONTH(DATE($O$2,H$2,1),0)), \"\")","v":6},{"$f":"IF(I$4=TRUE, COUNTIFS(TB_BASE_NEO[ADMISSÃO], \">=\"&DATE($O$2,I$2,1), TB_BASE_NEO[ADMISSÃO], \"<=\"&EOMONTH(DATE($O$2,I$2,1),0)), \"\")","v":8},{"$f":"IF(J$4=TRUE, COUNTIFS(TB_BASE_NEO[ADMISSÃO], \">=\"&DATE($O$2,J$2,1), TB_BASE_NEO[ADMISSÃO], \"<=\"&EOMONTH(DATE($O$2,J$2,1),0)), \"\")","v":5},{"$f":"IF(K$4=TRUE, COUNTIFS(TB_BASE_NEO[ADMISSÃO], \">=\"&DATE($O$2,K$2,1), TB_BASE_NEO[ADMISSÃO], \"<=\"&EOMONTH(DATE($O$2,K$2,1),0)), \"\")","v":2},{"$f":"IF(L$4=TRUE, COUNTIFS(TB_BASE_NEO[ADMISSÃO], \">=\"&DATE($O$2,L$2,1), TB_BASE_NEO[ADMISSÃO], \"<=\"&EOMONTH(DATE($O$2,L$2,1),0)), \"\")","v":6},{"$f":"IF(M$4=TRUE, COUNTIFS(TB_BASE_NEO[ADMISSÃO], \">=\"&DATE($O$2,M$2,1), TB_BASE_NEO[ADMISSÃO], \"<=\"&EOMONTH(DATE($O$2,M$2,1),0)), \"\")","v":7},{"$f":"SUM(B5:M5)","v":49}]
["Pacientes-dia",{"$f":"IF(B$4=TRUE, SUMIFS([1]!TB_BASE_NEO[jan/24], [1]!TB_BASE_NEO[ADMISSÃO], \">=\"&DATE($O$2,B$2,1), [1]!TB_BASE_NEO[ADMISSÃO], \"<=\"&EOMONTH(DATE($O$2,B$2,1),0)), \"\")","v":0},{"$f":"IF(C$4=TRUE, SUMIFS([1]!TB_BASE_NEO[fev/24], [1]!TB_BASE_NEO[ADMISSÃO], \">=\"&DATE($O$2,C$2,1), [1]!TB_BASE_NEO[ADMISSÃO], \"<=\"&EOMONTH(DATE($O$2,C$2,1),0)), \"\")","v":19},{"$f":"IF(D$4=TRUE, SUMIFS([1]!TB_BASE_NEO[mar/24], [1]!TB_BASE_NEO[ADMISSÃO], \">=\"&DATE($O$2,D$2,1), [1]!TB_BASE_NEO[ADMISSÃO], \"<=\"&EOMONTH(DATE($O$2,D$2,1),0)), \"\")","v":0},{"$f":"IF(E$4=TRUE, SUMIFS([1]!TB_BASE_NEO[abr/24], [1]!TB_BASE_NEO[ADMISSÃO], \">=\"&DATE($O$2,E$2,1), [1]!TB_BASE_NEO[ADMISSÃO], \"<=\"&EOMONTH(DATE($O$2,E$2,1),0)), \"\")","v":2},{"$f":"IF(F$4=TRUE, SUMIFS([1]!TB_BASE_NEO[mai/24], [1]!TB_BASE_NEO[ADMISSÃO], \">=\"&DATE($O$2,F$2,1), [1]!TB_BASE_NEO[ADMISSÃO], \"<=\"&EOMONTH(DATE($O$2,F$2,1),0)), \"\")","v":68},{"$f":"IF(G$4=TRUE, SUMIFS([1]!TB_BASE_NEO[jun/24], [1]!TB_BASE_NEO[ADMISSÃO], \">=\"&DATE($O$2,G$2,1), [1]!TB_BASE_NEO[ADMISSÃO], \"<=\"&EOMONTH(DATE($O$2,G$2,1),0)), \"\")","v":64},{"$f":"IF(H$4=TRUE, SUMIFS([1]!TB_BASE_NEO[jul/24], [1]!TB_BASE_NEO[ADMISSÃO], \">=\"&DATE($O$2,H$2,1), [1]!TB_BASE_NEO[ADMISSÃO], \"<=\"&EOMONTH(DATE($O$2,H$2,1),0)), \"\")","v":71},{"$f":"IF(I$4=TRUE, SUMIFS([1]!TB_BASE_NEO[ago/24], [1]!TB_BASE_NEO[ADMISSÃO], \">=\"&DATE($O$2,I$2,1), [1]!TB_BASE_NEO[ADMISSÃO], \"<=\"&EOMONTH(DATE($O$2,I$2,1),0)), \"\")","v":32},{"$f":"IF(J$4=TRUE, SUMIFS([1]!TB_BASE_NEO[set/24], [1]!TB_BASE_NEO[ADMISSÃO], \">=\"&DATE($O$2,J$2,1), [1]!TB_BASE_NEO[ADMISSÃO], \"<=\"&EOMONTH(DATE($O$2,J$2,1),0)), \"\")","v":48},{"$f":"IF(K$4=TRUE, SUMIFS([1]!TB_BASE_NEO[out/24], [1]!TB_BASE_NEO[ADMISSÃO], \">=\"&DATE($O$2,K$2,1), [1]!TB_BASE_NEO[ADMISSÃO], \"<=\"&EOMONTH(DATE($O$2,K$2,1),0)), \"\")","v":4},{"$f":"IF(L$4=TRUE, SUMIFS([1]!TB_BASE_NEO[nov/24], [1]!TB_BASE_NEO[ADMISSÃO], \">=\"&DATE($O$2,L$2,1), [1]!TB_BASE_NEO[ADMISSÃO], \"<=\"&EOMONTH(DATE($O$2,L$2,1),0)), \"\")","v":21},{"$f":"IF(M$4=TRUE, SUMIFS([1]!TB_BASE_NEO[dez/24], [1]!TB_BASE_NEO[ADMISSÃO], \">=\"&DATE($O$2,M$2,1), [1]!TB_BASE_NEO[ADMISSÃO], \"<=\"&EOMONTH(DATE($O$2,M$2,1),0)), \"\")","v":73},{"$f":"SUM(B6:M6)","v":402}]
["Tx reinternação <24h",{"$f":"IF(AND(B$4=TRUE,B$5<>0), COUNTIFS([1]!TB_BASE_NEO[READMISSÃO <48H?], \"SIM\", [1]!TB_BASE_NEO[ADMISSÃO], \">=\"&DATE($O$2,B$2,1), [1]!TB_BASE_NEO[ADMISSÃO], \"<=\"&EOMONTH(DATE($O$2,B$2,1),0))/B5, \"\")","v":""},{"$f":"IF(AND(C$4=TRUE,C$5<>0), COUNTIFS([1]!TB_BASE_NEO[READMISSÃO <48H?], \"SIM\", [1]!TB_BASE_NEO[ADMISSÃO], \">=\"&DATE($O$2,C$2,1), [1]!TB_BASE_NEO[ADMISSÃO], \"<=\"&EOMONTH(DATE($O$2,C$2,1),0))/C5, \"\")","v":0},{"$f":"IF(AND(D$4=TRUE,D$5<>0), COUNTIFS([1]!TB_BASE_NEO[READMISSÃO <48H?], \"SIM\", [1]!TB_BASE_NEO[ADMISSÃO], \">=\"&DATE($O$2,D$2,1), [1]!TB_BASE_NEO[ADMISSÃO], \"<=\"&EOMONTH(DATE($O$2,D$2,1),0))/D5, \"\")","v":""},{"$f":"IF(AND(E$4=TRUE,E$5<>0), COUNTIFS([1]!TB_BASE_NEO[READMISSÃO <48H?], \"SIM\", [1]!TB_BASE_NEO[ADMISSÃO], \">=\"&DATE($O$2,E$2,1), [1]!TB_BASE_NEO[ADMISSÃO], \"<=\"&EOMONTH(DATE($O$2,E$2,1),0))/E5, \"\")","v":0},{"$f":"IF(AND(F$4=TRUE,F$5<>0), COUNTIFS([1]!TB_BASE_NEO[READMISSÃO <48H?], \"SIM\", [1]!TB_BASE_NEO[ADMISSÃO], \">=\"&DATE($O$2,F$2,1), [1]!TB_BASE_NEO[ADMISSÃO], \"<=\"&EOMONTH(DATE($O$2,F$2,1),0))/F5, \"\")","v":0},{"$f":"IF(AND(G$4=TRUE,G$5<>0), COUNTIFS([1]!TB_BASE_NEO[READMISSÃO <48H?], \"SIM\", [1]!TB_BASE_NEO[ADMISSÃO], \">=\"&DATE($O$2,G$2,1), [1]!TB_BASE_NEO[ADMISSÃO], \"<=\"&EOMONTH(DATE($O$2,G$2,1),0))/G5, \"\")","v":0},{"$f":"IF(AND(H$4=TRUE,H$5<>0), COUNTIFS([1]!TB_BASE_NEO[READMISSÃO <48H?], \"SIM\", [1]!TB_BASE_NEO[ADMISSÃO], \">=\"&DATE($O$2,H$2,1), [1]!TB_BASE_NEO[ADMISSÃO], \"<=\"&EOMONTH(DATE($O$2,H$2,1),0))/H5, \"\")","v":0},{"$f":"IF(AND(I$4=TRUE,I$5<>0), COUNTIFS([1]!TB_BASE_NEO[READMISSÃO <48H?], \"SIM\", [1]!TB_BASE_NEO[ADMISSÃO], \">=\"&DATE($O$2,I$2,1), [1]!TB_BASE_NEO[ADMISSÃO], \"<=\"&EOMONTH(DATE($O$2,I$2,1),0))/I5, \"\")","v":0},{"$f":"IF(AND(J$4=TRUE,J$5<>0), COUNTIFS([1]!TB_BASE_NEO[READMISSÃO <48H?], \"SIM\", [1]!TB_BASE_NEO[ADMISSÃO], \">=\"&DATE($O$2,J$2,1), [1]!TB_BASE_NEO[ADMISSÃO], \"<=\"&EOMONTH(DATE($O$2,J$2,1),0))/J5, \"\")","v":0},{"$f":"IF(AND(K$4=TRUE,K$5<>0), COUNTIFS([1]!TB_BASE_NEO[READMISSÃO <48H?], \"SIM\", [1]!TB_BASE_NEO[ADMISSÃO], \">=\"&DATE($O$2,K$2,1), [1]!TB_BASE_NEO[ADMISSÃO], \"<=\"&EOMONTH(DATE($O$2,K$2,1),0))/K5, \"\")","v":0},{"$f":"IF(AND(L$4=TRUE,L$5<>0), COUNTIFS([1]!TB_BASE_NEO[READMISSÃO <48H?], \"SIM\", [1]!TB_BASE_NEO[ADMISSÃO], \">=\"&DATE($O$2,L$2,1), [1]!TB_BASE_NEO[ADMISSÃO], \"<=\"&EOMONTH(DATE($O$2,L$2,1),0))/L5, \"\")","v":0},{"$f":"IF(AND(M$4=TRUE,M$5<>0), COUNTIFS([1]!TB_BASE_NEO[READMISSÃO <48H?], \"SIM\", [1]!TB_BASE_NEO[ADMISSÃO], \">=\"&DATE($O$2,M$2,1), [1]!TB_BASE_NEO[ADMISSÃO], \"<=\"&EOMONTH(DATE($O$2,M$2,1),0))/M5, \"\")","v":0},{"$f":"_xlfn.AGGREGATE(9, 6, B7:M7)/N5","v":0}]
["Óbito <24h",{"$f":"IF(B$4=TRUE, COUNTIFS([1]!TB_BASE_NEO[DESFECHO], \"ÓBITO <24H\", [1]!TB_BASE_NEO[ADMISSÃO], \">=\"&DATE($O$2,B$2,1), [1]!TB_BASE_NEO[ADMISSÃO], \"<=\"&EOMONTH(DATE($O$2,B$2,1),0)), \"\")","v":0},{"$f":"IF(C$4=TRUE, COUNTIFS([1]!TB_BASE_NEO[DESFECHO], \"ÓBITO <24H\", [1]!TB_BASE_NEO[ADMISSÃO], \">=\"&DATE($O$2,C$2,1), [1]!TB_BASE_NEO[ADMISSÃO], \"<=\"&EOMONTH(DATE($O$2,C$2,1),0)), \"\")","v":0},{"$f":"IF(D$4=TRUE, COUNTIFS([1]!TB_BASE_NEO[DESFECHO], \"ÓBITO <24H\", [1]!TB_BASE_NEO[ADMISSÃO], \">=\"&DATE($O$2,D$2,1), [1]!TB_BASE_NEO[ADMISSÃO], \"<=\"&EOMONTH(DATE($O$2,D$2,1),0)), \"\")","v":0},{"$f":"IF(E$4=TRUE, COUNTIFS([1]!TB_BASE_NEO[DESFECHO], \"ÓBITO <24H\", [1]!TB_BASE_NEO[ADMISSÃO], \">=\"&DATE($O$2,E$2,1), [1]!TB_BASE_NEO[ADMISSÃO], \"<=\"&EOMONTH(DATE($O$2,E$2,1),0)), \"\")","v":0},{"$f":"IF(F$4=TRUE, COUNTIFS([1]!TB_BASE_NEO[DESFECHO], \"ÓBITO <24H\", [1]!TB_BASE_NEO[ADMISSÃO], \">=\"&DATE($O$2,F$2,1), [1]!TB_BASE_NEO[ADMISSÃO], \"<=\"&EOMONTH(DATE($O$2,F$2,1),0)), \"\")","v":0},{"$f":"IF(G$4=TRUE, COUNTIFS([1]!TB_BASE_NEO[DESFECHO], \"ÓBITO <24H\", [1]!TB_BASE_NEO[ADMISSÃO], \">=\"&DATE($O$2,G$2,1), [1]!TB_BASE_NEO[ADMISSÃO], \"<=\"&EOMONTH(DATE($O$2,G$2,1),0)), \"\")","v":0},{"$f":"IF(H$4=TRUE, COUNTIFS([1]!TB_BASE_NEO[DESFECHO], \"ÓBITO <24H\", [1]!TB_BASE_NEO[ADMISSÃO], \">=\"&DATE($O$2,H$2,1), [1]!TB_BASE_NEO[ADMISSÃO], \"<=\"&EOMONTH(DATE($O$2,H$2,1),0)), \"\")","v":0},{"$f":"IF(I$4=TRUE, COUNTIFS([1]!TB_BASE_NEO[DESFECHO], \"ÓBITO <24H\", [1]!TB_BASE_NEO[ADMISSÃO], \">=\"&DATE($O$2,I$2,1), [1]!TB_BASE_NEO[ADMISSÃO], \"<=\"&EOMONTH(DATE($O$2,I$2,1),0)), \"\")","v":0},{"$f":"IF(J$4=TRUE, COUNTIFS([1]!TB_BASE_NEO[DESFECHO], \"ÓBITO <24H\", [1]!TB_BASE_NEO[ADMISSÃO], \">=\"&DATE($O$2,J$2,1), [1]!TB_BASE_NEO[ADMISSÃO], \"<=\"&EOMONTH(DATE($O$2,J$2,1),0)), \"\")","v":0},{"$f":"IF(K$4=TRUE, COUNTIFS([1]!TB_BASE_NEO[DESFECHO], \"ÓBITO <24H\", [1]!TB_BASE_NEO[ADMISSÃO], \">=\"&DATE($O$2,K$2,1), [1]!TB_BASE_NEO[ADMISSÃO], \"<=\"&EOMONTH(DATE($O$2,K$2,1),0)), \"\")","v":0},{"$f":"IF(L$4=TRUE, COUNTIFS([1]!TB_BASE_NEO[DESFECHO], \"ÓBITO <24H\", [1]!TB_BASE_NEO[ADMISSÃO], \">=\"&DATE($O$2,L$2,1), [1]!TB_BASE_NEO[ADMISSÃO], \"<=\"&EOMONTH(DATE($O$2,L$2,1),0)), \"\")","v":0},{"$f":"IF(M$4=TRUE, COUNTIFS([1]!TB_BASE_NEO[DESFECHO], \"ÓBITO <24H\", [1]!TB_BASE_NEO[ADMISSÃO], \">=\"&DATE($O$2,M$2,1), [1]!TB_BASE_NEO[ADMISSÃO], \"<=\"&EOMONTH(DATE($O$2,M$2,1),0)), \"\")","v":0},{"$f":"SUM(B8:M8)","v":0}]
["Óbito paliativo",{"$f":"IF(B$4=TRUE, COUNTIFS([1]!TB_BASE_NEO[DESFECHO], \"ÓBITO PALIATIVO\", [1]!TB_BASE_NEO[ADMISSÃO], \">=\"&DATE($O$2,B$2,1), [1]!TB_BASE_NEO[ADMISSÃO], \"<=\"&EOMONTH(DATE($O$2,B$2,1),0)), \"\")","v":0},{"$f":"IF(C$4=TRUE, COUNTIFS([1]!TB_BASE_NEO[DESFECHO], \"ÓBITO PALIATIVO\", [1]!TB_BASE_NEO[ADMISSÃO], \">=\"&DATE($O$2,C$2,1), [1]!TB_BASE_NEO[ADMISSÃO], \"<=\"&EOMONTH(DATE($O$2,C$2,1),0)), \"\")","v":0},{"$f":"IF(D$4=TRUE, COUNTIFS([1]!TB_BASE_NEO[DESFECHO], \"ÓBITO PALIATIVO\", [1]!TB_BASE_NEO[ADMISSÃO], \">=\"&DATE($O$2,D$2,1), [1]!TB_BASE_NEO[ADMISSÃO], \"<=\"&EOMONTH(DATE($O$2,D$2,1),0)), \"\")","v":0},{"$f":"IF(E$4=TRUE, COUNTIFS([1]!TB_BASE_NEO[DESFECHO], \"ÓBITO PALIATIVO\", [1]!TB_BASE_NEO[ADMISSÃO], \">=\"&DATE($O$2,E$2,1), [1]!TB_BASE_NEO[ADMISSÃO], \"<=\"&EOMONTH(DATE($O$2,E$2,1),0)), \"\")","v":0},{"$f":"IF(F$4=TRUE, COUNTIFS([1]!TB_BASE_NEO[DESFECHO], \"ÓBITO PALIATIVO\", [1]!TB_BASE_NEO[ADMISSÃO], \">=\"&DATE($O$2,F$2,1), [1]!TB_BASE_NEO[ADMISSÃO], \"<=\"&EOMONTH(DATE($O$2,F$2,1),0)), \"\")","v":0},{"$f":"IF(G$4=TRUE, COUNTIFS([1]!TB_BASE_NEO[DESFECHO], \"ÓBITO PALIATIVO\", [1]!TB_BASE_NEO[ADMISSÃO], \">=\"&DATE($O$2,G$2,1), [1]!TB_BASE_NEO[ADMISSÃO], \"<=\"&EOMONTH(DATE($O$2,G$2,1),0)), \"\")","v":1},{"$f":"IF(H$4=TRUE, COUNTIFS([1]!TB_BASE_NEO[DESFECHO], \"ÓBITO PALIATIVO\", [1]!TB_BASE_NEO[ADMISSÃO], \">=\"&DATE($O$2,H$2,1), [1]!TB_BASE_NEO[ADMISSÃO], \"<=\"&EOMONTH(DATE($O$2,H$2,1),0)), \"\")","v":0},{"$f":"IF(I$4=TRUE, COUNTIFS([1]!TB_BASE_NEO[DESFECHO], \"ÓBITO PALIATIVO\", [1]!TB_BASE_NEO[ADMISSÃO], \">=\"&DATE($O$2,I$2,1), [1]!TB_BASE_NEO[ADMISSÃO], \"<=\"&EOMONTH(DATE($O$2,I$2,1),0)), \"\")","v":1},{"$f":"IF(J$4=TRUE, COUNTIFS([1]!TB_BASE_NEO[DESFECHO], \"ÓBITO PALIATIVO\", [1]!TB_BASE_NEO[ADMISSÃO], \">=\"&DATE($O$2,J$2,1), [1]!TB_BASE_NEO[ADMISSÃO], \"<=\"&EOMONTH(DATE($O$2,J$2,1),0)), \"\")","v":0},{"$f":"IF(K$4=TRUE, COUNTIFS([1]!TB_BASE_NEO[DESFECHO], \"ÓBITO PALIATIVO\", [1]!TB_BASE_NEO[ADMISSÃO], \">=\"&DATE($O$2,K$2,1), [1]!TB_BASE_NEO[ADMISSÃO], \"<=\"&EOMONTH(DATE($O$2,K$2,1),0)), \"\")","v":0},{"$f":"IF(L$4=TRUE, COUNTIFS([1]!TB_BASE_NEO[DESFECHO], \"ÓBITO PALIATIVO\", [1]!TB_BASE_NEO[ADMISSÃO], \">=\"&DATE($O$2,L$2,1), [1]!TB_BASE_NEO[ADMISSÃO], \"<=\"&EOMONTH(DATE($O$2,L$2,1),0)), \"\")","v":0},{"$f":"IF(M$4=TRUE, COUNTIFS([1]!TB_BASE_NEO[DESFECHO], \"ÓBITO PALIATIVO\", [1]!TB_BASE_NEO[ADMISSÃO], \">=\"&DATE($O$2,M$2,1), [1]!TB_BASE_NEO[ADMISSÃO], \"<=\"&EOMONTH(DATE($O$2,M$2,1),0)), \"\")","v":1},{"$f":"SUM(B9:M9)","v":3}]
["Óbitos totais",{"$f":"IF(B$4=TRUE, COUNTIFS([1]!TB_BASE_NEO[DESFECHO], \"ÓBITO\", [1]!TB_BASE_NEO[ADMISSÃO], \">=\"&DATE($O$2,B$2,1), [1]!TB_BASE_NEO[ADMISSÃO], \"<=\"&EOMONTH(DATE($O$2,B$2,1),0)) + B8 + B9, \"\")","v":0},{"$f":"IF(C$4=TRUE, COUNTIFS([1]!TB_BASE_NEO[DESFECHO], \"ÓBITO\", [1]!TB_BASE_NEO[ADMISSÃO], \">=\"&DATE($O$2,C$2,1), [1]!TB_BASE_NEO[ADMISSÃO], \"<=\"&EOMONTH(DATE($O$2,C$2,1),0)) + C8 + C9, \"\")","v":1},{"$f":"IF(D$4=TRUE, COUNTIFS([1]!TB_BASE_NEO[DESFECHO], \"ÓBITO\", [1]!TB_BASE_NEO[ADMISSÃO], \">=\"&DATE($O$2,D$2,1), [1]!TB_BASE_NEO[ADMISSÃO], \"<=\"&EOMONTH(DATE($O$2,D$2,1),0)) + D8 + D9, \"\")","v":0},{"$f":"IF(E$4=TRUE, COUNTIFS([1]!TB_BASE_NEO[DESFECHO], \"ÓBITO\", [1]!TB_BASE_NEO[ADMISSÃO], \">=\"&DATE($O$2,E$2,1), [1]!TB_BASE_NEO[ADMISSÃO], \"<=\"&EOMONTH(DATE($O$2,E$2,1),0)) + E8 + E9, \"\")","v":1},{"$f":"IF(F$4=TRUE, COUNTIFS([1]!TB_BASE_NEO[DESFECHO], \"ÓBITO\", [1]!TB_BASE_NEO[ADMISSÃO], \">=\"&DATE($O$2,F$2,1), [1]!TB_BASE_NEO[ADMISSÃO], \"<=\"&EOMONTH(DATE($O$2,F$2,1),0)) + F8 + F9, \"\")","v":2},{"$f":"IF(G$4=TRUE, COUNTIFS([1]!TB_BASE_NEO[DESFECHO], \"ÓBITO\", [1]!TB_BASE_NEO[ADMISSÃO], \">=\"&DATE($O$2,G$2,1), [1]!TB_BASE_NEO[ADMISSÃO], \"<=\"&EOMONTH(DATE($O$2,G$2,1),0)) + G8 + G9, \"\")","v":1},{"$f":"IF(H$4=TRUE, COUNTIFS([1]!TB_BASE_NEO[DESFECHO], \"ÓBITO\", [1]!TB_BASE_NEO[ADMISSÃO], \">=\"&DATE($O$2,H$2,1), [1]!TB_BASE_NEO[ADMISSÃO], \"<=\"&EOMONTH(DATE($O$2,H$2,1),0)) + H8 + H9, \"\")","v":0},{"$f":"IF(I$4=TRUE, COUNTIFS([1]!TB_BASE_NEO[DESFECHO], \"ÓBITO\", [1]!TB_BASE_NEO[ADMISSÃO], \">=\"&DATE($O$2,I$2,1), [1]!TB_BASE_NEO[ADMISSÃO], \"<=\"&EOMONTH(DATE($O$2,I$2,1),0)) + I8 + I9, \"\")","v":2},{"$f":"IF(J$4=TRUE, COUNTIFS([1]!TB_BASE_NEO[DESFECHO], \"ÓBITO\", [1]!TB_BASE_NEO[ADMISSÃO], \">=\"&DATE($O$2,J$2,1), [1]!TB_BASE_NEO[ADMISSÃO], \"<=\"&EOMONTH(DATE($O$2,J$2,1),0)) + J8 + J9, \"\")","v":2},{"$f":"IF(K$4=TRUE, COUNTIFS([1]!TB_BASE_NEO[DESFECHO], \"ÓBITO\", [1]!TB_BASE_NEO[ADMISSÃO], \">=\"&DATE($O$2,K$2,1), [1]!TB_BASE_NEO[ADMISSÃO], \"<=\"&EOMONTH(DATE($O$2,K$2,1),0)) + K8 + K9, \"\")","v":0},{"$f":"IF(L$4=TRUE, COUNTIFS([1]!TB_BASE_NEO[DESFECHO], \"ÓBITO\", [1]!TB_BASE_NEO[ADMISSÃO], \">=\"&DATE($O$2,L$2,1), [1]!TB_BASE_NEO[ADMISSÃO], \"<=\"&EOMONTH(DATE($O$2,L$2,1),0)) + L8 + L9, \"\")","v":0},{"$f":"IF(M$4=TRUE, COUNTIFS([1]!TB_BASE_NEO[DESFECHO], \"ÓBITO\", [1]!TB_BASE_NEO[ADMISSÃO], \">=\"&DATE($O$2,M$2,1), [1]!TB_BASE_NEO[ADMISSÃO], \"<=\"&EOMONTH(DATE($O$2,M$2,1),0)) + M8 + M9, \"\")","v":2},11]
["Tx mortalidade",{"$f":"_xlfn.IFS(B10=\"\",\"\",B10=0,0,B10<>0,B10/B5)","v":0},{"$f":"_xlfn.IFS(C10=\"\",\"\",C10=0,0,C10<>0,C10/C5)","v":1},{"$f":"_xlfn.IFS(D10=\"\",\"\",D10=0,0,D10<>0,D10/D5)","v":0},{"$f":"_xlfn.IFS(E10=\"\",\"\",E10=0,0,E10<>0,E10/E5)","v":1},{"$f":"_xlfn.IFS(F10=\"\",\"\",F10=0,0,F10<>0,F10/F5)","v":0.4},{"$f":"_xlfn.IFS(G10=\"\",\"\",G10=0,0,G10<>0,G10/G5)","v":0.125},{"$f":"_xlfn.IFS(H10=\"\",\"\",H10=0,0,H10<>0,H10/H5)","v":0},{"$f":"_xlfn.IFS(I10=\"\",\"\",I10=0,0,I10<>0,I10/I5)","v":0.25},{"$f":"_xlfn.IFS(J10=\"\",\"\",J10=0,0,J10<>0,J10/J5)","v":0.4},{"$f":"_xlfn.IFS(K10=\"\",\"\",K10=0,0,K10<>0,K10/K5)","v":0},{"$f":"_xlfn.IFS(L10=\"\",\"\",L10=0,0,L10<>0,L10/L5)","v":0},{"$f":"_xlfn.IFS(M10=\"\",\"\",M10=0,0,M10<>0,M10/M5)","v":0.2857142857142857},{"$f":"_xlfn.AGGREGATE(1, 6, B11:M11)","v":0.28839285714285712}]
["Média SNAPPE II",{"$f":"IF(B$4=TRUE, SUMIFS([1]!TB_BASE_NEO[SNAPPE II], [1]!TB_BASE_NEO[ADMISSÃO], \">=\"&DATE($O$2,B$2,1), [1]!TB_BASE_NEO[ADMISSÃO], \"<=\"&EOMONTH(DATE($O$2,B$2,1),0))/(B5*100), \"\")","v":{"$error":"#DIV/0!"}},{"$f":"IF(C$4=TRUE, SUMIFS([1]!TB_BASE_NEO[SNAPPE II], [1]!TB_BASE_NEO[ADMISSÃO], \">=\"&DATE($O$2,C$2,1), [1]!TB_BASE_NEO[ADMISSÃO], \"<=\"&EOMONTH(DATE($O$2,C$2,1),0))/(C5*100), \"\")","v":0},{"$f":"IF(D$4=TRUE, SUMIFS([1]!TB_BASE_NEO[SNAPPE II], [1]!TB_BASE_NEO[ADMISSÃO], \">=\"&DATE($O$2,D$2,1), [1]!TB_BASE_NEO[ADMISSÃO], \"<=\"&EOMONTH(DATE($O$2,D$2,1),0))/(E5*100), \"\")","v":0},{"$f":"IF(E$4=TRUE, SUMIFS([1]!TB_BASE_NEO[SNAPPE II], [1]!TB_BASE_NEO[ADMISSÃO], \">=\"&DATE($O$2,E$2,1), [1]!TB_BASE_NEO[ADMISSÃO], \"<=\"&EOMONTH(DATE($O$2,E$2,1),0))/(E5*100), \"\")","v":0},{"$f":"IF(F$4=TRUE, SUMIFS([1]!TB_BASE_NEO[SNAPPE II], [1]!TB_BASE_NEO[ADMISSÃO], \">=\"&DATE($O$2,F$2,1), [1]!TB_BASE_NEO[ADMISSÃO], \"<=\"&EOMONTH(DATE($O$2,F$2,1),0))/(F5*100), \"\")","v":7.5999999999999998E-2},{"$f":"IF(G$4=TRUE, SUMIFS([1]!TB_BASE_NEO[SNAPPE II], [1]!TB_BASE_NEO[ADMISSÃO], \">=\"&DATE($O$2,G$2,1), [1]!TB_BASE_NEO[ADMISSÃO], \"<=\"&EOMONTH(DATE($O$2,G$2,1),0))/(G5*100), \"\")","v":1.125E-2},{"$f":"IF(H$4=TRUE, SUMIFS([1]!TB_BASE_NEO[SNAPPE II], [1]!TB_BASE_NEO[ADMISSÃO], \">=\"&DATE($O$2,H$2,1), [1]!TB_BASE_NEO[ADMISSÃO], \"<=\"&EOMONTH(DATE($O$2,H$2,1),0))/(H5*100), \"\")","v":6.5000000000000002E-2},{"$f":"IF(I$4=TRUE, SUMIFS([1]!TB_BASE_NEO[SNAPPE II], [1]!TB_BASE_NEO[ADMISSÃO], \">=\"&DATE($O$2,I$2,1), [1]!TB_BASE_NEO[ADMISSÃO], \"<=\"&EOMONTH(DATE($O$2,I$2,1),0))/(I5*100), \"\")","v":7.7499999999999999E-2},{"$f":"IF(J$4=TRUE, SUMIFS([1]!TB_BASE_NEO[SNAPPE II], [1]!TB_BASE_NEO[ADMISSÃO], \">=\"&DATE($O$2,J$2,1), [1]!TB_BASE_NEO[ADMISSÃO], \"<=\"&EOMONTH(DATE($O$2,J$2,1),0))/(J5*100), \"\")","v":0.246},{"$f":"IF(K$4=TRUE, SUMIFS([1]!TB_BASE_NEO[SNAPPE II], [1]!TB_BASE_NEO[ADMISSÃO], \">=\"&DATE($O$2,K$2,1), [1]!TB_BASE_NEO[ADMISSÃO], \"<=\"&EOMONTH(DATE($O$2,K$2,1),0))/(K5*100), \"\")","v":0},{"$f":"IF(L$4=TRUE, SUMIFS([1]!TB_BASE_NEO[SNAPPE II], [1]!TB_BASE_NEO[ADMISSÃO], \">=\"&DATE($O$2,L$2,1), [1]!TB_BASE_NEO[ADMISSÃO], \"<=\"&EOMONTH(DATE($O$2,L$2,1),0))/(L5*100), \"\")","v":2.6666666666666668E-2},{"$f":"IF(M$4=TRUE, SUMIFS([1]!TB_BASE_NEO[SNAPPE II], [1]!TB_BASE_NEO[ADMISSÃO], \">=\"&DATE($O$2,M$2,1), [1]!TB_BASE_NEO[ADMISSÃO], \"<=\"&EOMONTH(DATE($O$2,M$2,1),0))/(M5*100), \"\")","v":0.19228571428571428},{"$f":"_xlfn.AGGREGATE(1, 6, B12:M12)","v":6.3154761904761894E-2}]
["SMR",{"$f":"IF(B$4=TRUE, IF(B12=0, 0, B11/B12), \"\")","v":{"$error":"#DIV/0!"}},0,0,0,5.2631578947368425,11.111111111111111,0,{"$f":"IF(I$4=TRUE, IF(I12=0, 0, I11/I12), \"\")","v":3.2258064516129035},{"$f":"IF(J$4=TRUE, IF(J12=0, 0, J11/J12), \"\")","v":1.6260162601626018},0,0,1.4858841010401189,{"$f":"_xlfn.AGGREGATE(1, 6, B13:M13)","v":2.0647250744239614}]
["IG média (sem)",{"$f":"IF(B$4=TRUE, (SUMIFS([1]!TB_BASE_NEO[IG SEM], [1]!TB_BASE_NEO[ADMISSÃO], \">=\"&DATE($O$2,B$2,1), [1]!TB_BASE_NEO[ADMISSÃO], \"<=\"&EOMONTH(DATE($O$2,B$2,1),0)) + (SUMIFS([1]!TB_BASE_NEO[IG DIA], [1]!TB_BASE_NEO[ADMISSÃO], \">=\"&DATE($O$2,B$2,1), [1]!TB_BASE_NEO[ADMISSÃO], \"<=\"&EOMONTH(DATE($O$2,B$2,1),0))/7))/COUNTIFS([1]!TB_BASE_NEO[ADMISSÃO], \">=\"&DATE($O$2,B$2,1), [1]!TB_BASE_NEO[ADMISSÃO], \"<=\"&EOMONTH(DATE($O$2,B$2,1),0)), \"\")","v":{"$error":"#DIV/0!"}},{"$f":"IF(C$4=TRUE, (SUMIFS([1]!TB_BASE_NEO[IG SEM], [1]!TB_BASE_NEO[ADMISSÃO], \">=\"&DATE($O$2,C$2,1), [1]!TB_BASE_NEO[ADMISSÃO], \"<=\"&EOMONTH(DATE($O$2,C$2,1),0)) + (SUMIFS([1]!TB_BASE_NEO[IG DIA], [1]!TB_BASE_NEO[ADMISSÃO], \">=\"&DATE($O$2,C$2,1), [1]!TB_BASE_NEO[ADMISSÃO], \"<=\"&EOMONTH(DATE($O$2,C$2,1),0))/7))/COUNTIFS([1]!TB_BASE_NEO[ADMISSÃO], \">=\"&DATE($O$2,C$2,1), [1]!TB_BASE_NEO[ADMISSÃO], \"<=\"&EOMONTH(DATE($O$2,C$2,1),0)), \"\")","v":30.285714285714285},{"$f":"IF(D$4=TRUE, (SUMIFS([1]!TB_BASE_NEO[IG SEM], [1]!TB_BASE_NEO[ADMISSÃO], \">=\"&DATE($O$2,D$2,1), [1]!TB_BASE_NEO[ADMISSÃO], \"<=\"&EOMONTH(DATE($O$2,D$2,1),0)) + (SUMIFS([1]!TB_BASE_NEO[IG DIA], [1]!TB_BASE_NEO[ADMISSÃO], \">=\"&DATE($O$2,D$2,1), [1]!TB_BASE_NEO[ADMISSÃO], \"<=\"&EOMONTH(DATE($O$2,D$2,1),0))/7))/COUNTIFS([1]!TB_BASE_NEO[ADMISSÃO], \">=\"&DATE($O$2,D$2,1), [1]!TB_BASE_NEO[ADMISSÃO], \"<=\"&EOMONTH(DATE($O$2,D$2,1),0)), \"\")","v":{"$error":"#DIV/0!"}},{"$f":"IF(E$4=TRUE, (SUMIFS([1]!TB_BASE_NEO[IG SEM], [1]!TB_BASE_NEO[ADMISSÃO], \">=\"&DATE($O$2,E$2,1), [1]!TB_BASE_NEO[ADMISSÃO], \"<=\"&EOMONTH(DATE($O$2,E$2,1),0)) + (SUMIFS([1]!TB_BASE_NEO[IG DIA], [1]!TB_BASE_NEO[ADMISSÃO], \">=\"&DATE($O$2,E$2,1), [1]!TB_BASE_NEO[ADMISSÃO], \"<=\"&EOMONTH(DATE($O$2,E$2,1),0))/7))/COUNTIFS([1]!TB_BASE_NEO[ADMISSÃO], \">=\"&DATE($O$2,E$2,1), [1]!TB_BASE_NEO[ADMISSÃO], \"<=\"&EOMONTH(DATE($O$2,E$2,1),0)), \"\")","v":32},{"$f":"IF(F$4=TRUE, (SUMIFS([1]!TB_BASE_NEO[IG SEM], [1]!TB_BASE_NEO[ADMISSÃO], \">=\"&DATE($O$2,F$2,1), [1]!TB_BASE_NEO[ADMISSÃO], \"<=\"&EOMONTH(DATE($O$2,F$2,1),0)) + (SUMIFS([1]!TB_BASE_NEO[IG DIA], [1]!TB_BASE_NEO[ADMISSÃO], \">=\"&DATE($O$2,F$2,1), [1]!TB_BASE_NEO[ADMISSÃO], \"<=\"&EOMONTH(DATE($O$2,F$2,1),0))/7))/COUNTIFS([1]!TB_BASE_NEO[ADMISSÃO], \">=\"&DATE($O$2,F$2,1), [1]!TB_BASE_NEO[ADMISSÃO], \"<=\"&EOMONTH(DATE($O$2,F$2,1),0)), \"\")","v":35.628571428571426},{"$f":"IF(G$4=TRUE, (SUMIFS([1]!TB_BASE_NEO[IG SEM], [1]!TB_BASE_NEO[ADMISSÃO], \">=\"&DATE($O$2,G$2,1), [1]!TB_BASE_NEO[ADMISSÃO], \"<=\"&EOMONTH(DATE($O$2,G$2,1),0)) + (SUMIFS([1]!TB_BASE_NEO[IG DIA], [1]!TB_BASE_NEO[ADMISSÃO], \">=\"&DATE($O$2,G$2,1), [1]!TB_BASE_NEO[ADMISSÃO], \"<=\"&EOMONTH(DATE($O$2,G$2,1),0))/7))/COUNTIFS([1]!TB_BASE_NEO[ADMISSÃO], \">=\"&DATE($O$2,G$2,1), [1]!TB_BASE_NEO[ADMISSÃO], \"<=\"&EOMONTH(DATE($O$2,G$2,1),0)), \"\")","v":35.446428571428569},{"$f":"IF(H$4=TRUE, (SUMIFS([1]!TB_BASE_NEO[IG SEM], [1]!TB_BASE_NEO[ADMISSÃO], \">=\"&DATE($O$2,H$2,1), [1]!TB_BASE_NEO[ADMISSÃO], \"<=\"&EOMONTH(DATE($O$2,H$2,1),0)) + (SUMIFS([1]!TB_BASE_NEO[IG DIA], [1]!TB_BASE_NEO[ADMISSÃO], \">=\"&DATE($O$2,H$2,1), [1]!TB_BASE_NEO[ADMISSÃO], \"<=\"&EOMONTH(DATE($O$2,H$2,1),0))/7))/COUNTIFS([1]!TB_BASE_NEO[ADMISSÃO], \">=\"&DATE($O$2,H$2,1), [1]!TB_BASE_NEO[ADMISSÃO], \"<=\"&EOMONTH(DATE($O$2,H$2,1),0)), \"\")","v":36.047619047619044},{"$f":"IF(I$4=TRUE, (SUMIFS([1]!TB_BASE_NEO[IG SEM], [1]!TB_BASE_NEO[ADMISSÃO], \">=\"&DATE($O$2,I$2,1), [1]!TB_BASE_NEO[ADMISSÃO], \"<=\"&EOMONTH(DATE($O$2,I$2,1),0)) + (SUMIFS([1]!TB_BASE_NEO[IG DIA], [1]!TB_BASE_NEO[ADMISSÃO], \">=\"&DATE($O$2,I$2,1), [1]!TB_BASE_NEO[ADMISSÃO], \"<=\"&EOMONTH(DATE($O$2,I$2,1),0))/7))/COUNTIFS([1]!TB_BASE_NEO[ADMISSÃO], \">=\"&DATE($O$2,I$2,1), [1]!TB_BASE_NEO[ADMISSÃO], \"<=\"&EOMONTH(DATE($O$2,I$2,1),0)), \"\")","v":36.160714285714285},{"$f":"IF(J$4=TRUE, (SUMIFS([1]!TB_BASE_NEO[IG SEM], [1]!TB_BASE_NEO[ADMISSÃO], \">=\"&DATE($O$2,J$2,1), [1]!TB_BASE_NEO[ADMISSÃO], \"<=\"&EOMONTH(DATE($O$2,J$2,1),0)) + (SUMIFS([1]!TB_BASE_NEO[IG DIA], [1]!TB_BASE_NEO[ADMISSÃO], \">=\"&DATE($O$2,J$2,1), [1]!TB_BASE_NEO[ADMISSÃO], \"<=\"&EOMONTH(DATE($O$2,J$2,1),0))/7))/COUNTIFS([1]!TB_BASE_NEO[ADMISSÃO], \">=\"&DATE($O$2,J$2,1), [1]!TB_BASE_NEO[ADMISSÃO], \"<=\"&EOMONTH(DATE($O$2,J$2,1),0)), \"\")","v":32.171428571428571},{"$f":"IF(K$4=TRUE, (SUMIFS([1]!TB_BASE_NEO[IG SEM], [1]!TB_BASE_NEO[ADMISSÃO], \">=\"&DATE($O$2,K$2,1), [1]!TB_BASE_NEO[ADMISSÃO], \"<=\"&EOMONTH(DATE($O$2,K$2,1),0)) + (SUMIFS([1]!TB_BASE_NEO[IG DIA], [1]!TB_BASE_NEO[ADMISSÃO], \">=\"&DATE($O$2,K$2,1), [1]!TB_BASE_NEO[ADMISSÃO], \"<=\"&EOMONTH(DATE($O$2,K$2,1),0))/7))/COUNTIFS([1]!TB_BASE_NEO[ADMISSÃO], \">=\"&DATE($O$2,K$2,1), [1]!TB_BASE_NEO[ADMISSÃO], \"<=\"&EOMONTH(DATE($O$2,K$2,1),0)), \"\")","v":38.214285714285715},{"$f":"IF(L$4=TRUE, (SUMIFS([1]!TB_BASE_NEO[IG SEM], [1]!TB_BASE_NEO[ADMISSÃO], \">=\"&DATE($O$2,L$2,1), [1]!TB_BASE_NEO[ADMISSÃO], \"<=\"&EOMONTH(DATE($O$2,L$2,1),0)) + (SUMIFS([1]!TB_BASE_NEO[IG DIA], [1]!TB_BASE_NEO[ADMISSÃO], \">=\"&DATE($O$2,L$2,1), [1]!TB_BASE_NEO[ADMISSÃO], \"<=\"&EOMONTH(DATE($O$2,L$2,1),0))/7))/COUNTIFS([1]!TB_BASE_NEO[ADMISSÃO], \">=\"&DATE($O$2,L$2,1), [1]!TB_BASE_NEO[ADMISSÃO], \"<=\"&EOMONTH(DATE($O$2,L$2,1),0)), \"\")","v":34.547619047619044},{"$f":"IF(M$4=TRUE, (SUMIFS([1]!TB_BASE_NEO[IG SEM], [1]!TB_BASE_NEO[ADMISSÃO], \">=\"&DATE($O$2,M$2,1), [1]!TB_BASE_NEO[ADMISSÃO], \"<=\"&EOMONTH(DATE($O$2,M$2,1),0)) + (SUMIFS([1]!TB_BASE_NEO[IG DIA], [1]!TB_BASE_NEO[ADMISSÃO], \">=\"&DATE($O$2,M$2,1), [1]!TB_BASE_NEO[ADMISSÃO], \"<=\"&EOMONTH(DATE($O$2,M$2,1),0))/7))/COUNTIFS([1]!TB_BASE_NEO[ADMISSÃO], \">=\"&DATE($O$2,M$2,1), [1]!TB_BASE_NEO[ADMISSÃO], \"<=\"&EOMONTH(DATE($O$2,M$2,1),0)), \"\")","v":34.938775510204081},{"$f":"_xlfn.AGGREGATE(1, 6, B14:M14)","v":34.544115646258504}]
["Saídas",{"$f":"IF(B$4=TRUE, COUNTIFS([1]!TB_BASE_NEO[ALTA_EFETIVA], \">=\"&DATE($O$2,B$2,1), [1]!TB_BASE_NEO[ALTA_EFETIVA], \"<=\"&EOMONTH(DATE($O$2,B$2,1),0)), \"\")","v":0},{"$f":"IF(C$4=TRUE, COUNTIFS([1]!TB_BASE_NEO[ALTA_EFETIVA], \">=\"&DATE($O$2,C$2,1), [1]!TB_BASE_NEO[ALTA_EFETIVA], \"<=\"&EOMONTH(DATE($O$2,C$2,1),0)), \"\")","v":0},{"$f":"IF(D$4=TRUE, COUNTIFS([1]!TB_BASE_NEO[ALTA_EFETIVA], \">=\"&DATE($O$2,D$2,1), [1]!TB_BASE_NEO[ALTA_EFETIVA], \"<=\"&EOMONTH(DATE($O$2,D$2,1),0)), \"\")","v":1},{"$f":"IF(E$4=TRUE, COUNTIFS([1]!TB_BASE_NEO[ALTA_EFETIVA], \">=\"&DATE($O$2,E$2,1), [1]!TB_BASE_NEO[ALTA_EFETIVA], \"<=\"&EOMONTH(DATE($O$2,E$2,1),0)), \"\")","v":0},{"$f":"IF(F$4=TRUE, COUNTIFS([1]!TB_BASE_NEO[ALTA_EFETIVA], \">=\"&DATE($O$2,F$2,1), [1]!TB_BASE_NEO[ALTA_EFETIVA], \"<=\"&EOMONTH(DATE($O$2,F$2,1),0)), \"\")","v":2},{"$f":"IF(G$4=TRUE, COUNTIFS([1]!TB_BASE_NEO[ALTA_EFETIVA], \">=\"&DATE($O$2,G$2,1), [1]!TB_BASE_NEO[ALTA_EFETIVA], \"<=\"&EOMONTH(DATE($O$2,G$2,1),0)), \"\")","v":8},{"$f":"IF(H$4=TRUE, COUNTIFS([1]!TB_BASE_NEO[ALTA_EFETIVA], \">=\"&DATE($O$2,H$2,1), [1]!TB_BASE_NEO[ALTA_EFETIVA], \"<=\"&EOMONTH(DATE($O$2,H$2,1),0)), \"\")","v":8},{"$f":"IF(I$4=TRUE, COUNTIFS([1]!TB_BASE_NEO[ALTA_EFETIVA], \">=\"&DATE($O$2,I$2,1), [1]!TB_BASE_NEO[ALTA_EFETIVA], \"<=\"&EOMONTH(DATE($O$2,I$2,1),0)), \"\")","v":7},{"$f":"IF(J$4=TRUE, COUNTIFS([1]!TB_BASE_NEO[ALTA_EFETIVA], \">=\"&DATE($O$2,J$2,1), [1]!TB_BASE_NEO[ALTA_EFETIVA], \"<=\"&EOMONTH(DATE($O$2,J$2,1),0)), \"\")","v":6},{"$f":"IF(K$4=TRUE, COUNTIFS([1]!TB_BASE_NEO[ALTA_EFETIVA], \">=\"&DATE($O$2,K$2,1), [1]!TB_BASE_NEO[ALTA_EFETIVA], \"<=\"&EOMONTH(DATE($O$2,K$2,1),0)), \"\")","v":4},{"$f":"IF(L$4=TRUE, COUNTIFS([1]!TB_BASE_NEO[ALTA_EFETIVA], \">=\"&DATE($O$2,L$2,1), [1]!TB_BASE_NEO[ALTA_EFETIVA], \"<=\"&EOMONTH(DATE($O$2,L$2,1),0)), \"\")","v":3},{"$f":"IF(M$4=TRUE, COUNTIFS([1]!TB_BASE_NEO[ALTA_EFETIVA], \">=\"&DATE($O$2,M$2,1), [1]!TB_BASE_NEO[ALTA_EFETIVA], \"<=\"&EOMONTH(DATE($O$2,M$2,1),0)), \"\")","v":9},{"$f":"SUM(B15:M15)","v":48}]
["Permanência (dias)",{"$f":"IF(B15=\"\",\"\",B6/B15)","v":{"$error":"#DIV/0!"}},{"$f":"IF(C15=\"\",\"\",C6/C15)","v":{"$error":"#DIV/0!"}},0,{"$error":"#DIV/0!"},34,8,8.875,4.5714285714285712,8,1,7,8.1111111111111107,{"$f":"_xlfn.AGGREGATE(1,6,B16:M16)","v":8.8397266313932974}]
["Tx ocupação",{"$f":"IF(B6=\"\",\"\",B6/90)","v":0},{"$f":"IF(C6=\"\",\"\",C6/90)","v":0.21111111111111111},0,2.2222222222222223E-2,0.75555555555555554,0.71111111111111114,0.78888888888888886,0.35555555555555557,0.53333333333333333,4.4444444444444446E-2,0.23333333333333334,0.81111111111111112,{"$f":"_xlfn.AGGREGATE(1,6,B17:M17)","v":0.37222222222222223}]
["Nº IPCS",0,0,1,1,0,0,0,null,null,null,null,null,{"$f":"SUM(B18:M18)","v":2}]
["Nº PAV",0,0,0,0,0,0,0,null,null,null,null,null,{"$f":"SUM(B19:M19)","v":0}]
["Nº ITU",0,0,0,0,0,0,0,null,null,null,null,null,{"$f":"SUM(B20:M20)","v":0}]
["Densidade IPCS CVC",0,0,55.56,50,0,0,0,null,null,null,null,null,{"$f":"SUM(B21:M21)/(12-COUNTBLANK(B21:M21))","v":15.08}]
["Densidade PAV",0,0,0,0,0,0,0,null,null,null,null,null,{"$f":"SUM(B22:M22)/(12-COUNTBLANK(B22:M22))","v":0}]
["Densidade ITU SVD",0,0,0,0,0,0,0,null,null,null,null,null,0]
["Tx CVC",0,0.2,0.31030000000000002,0.57140000000000002,4.4400000000000002E-2,0.16669999999999999,0.51280000000000003,null,null,null,null,null,{"$f":"SUM(B24:M24)/(12-COUNTBLANK(B24:M24))","v":0.25794285714285714}]
["Tx VM",0.2,6.6699999999999995E-2,0.2414,0.1143,6.6699999999999995E-2,3.3300000000000003E-2,0.15380000000000002,null,null,null,null,null,{"$f":"SUM(B25:M25)/(12-COUNTBLANK(B25:M25))","v":0.12517142857142857}]
["Tx SVD",0,0,0,0,0,0,0,null,null,null,null,null,{"$f":"SUM(B26:M26)/(12-COUNTBLANK(B26:M26))","v":0}]
["Assertividade PT",null,null,null,null,null,null,null,null,null,null,null,null,{"$f":"COUNTBLANK(B27:M27)","v":12}]